Workbook

Sheet datos
A1: -2475 | B1: RAND() | C1: =$S$5 -> 100000 | D1: DD | E1: Trade' | F1: Trade'' | G1: 100000 | H1: DD2 | K1: Net | L1: MaxDD | M1: Ruina | N1: Net2 | O1: MaxDD2 | P1: Ruina2 | R1: Rellenar lo que tenga el fondo azul y pulsar "Calcular"
A2: -1000 | B2: =INDEX(A:A,RANDBETWEEN(1,$S$8)) -> -2850 | C2: =IF(C1>$S$7,C1+B2,C1) -> 97150 | D2: =MAX($C$1:C2)-C2 -> 2850 | E2: =IF(D1>drawd2,0,IF(D1>drawd1,B2/2,B2)) -> 0 | F2: =B2 -> -2850 | G2: =IF(G1>ruina,G1+F2,G1) -> 97150 | H2: =MAX($C$1:G2)-G2 -> 2850 | K2: =OFFSET($C$1,$S$9-1,0)-$C$1 -> -10285 | L2: =MAX($D$1:OFFSET($D$1,$S$9-1,0)) -> 12545 | M2: =IF(INDEX(C:C,COUNT(C:C))<$S$7,1,0) -> 1 | N2: =OFFSET($G$1,$S$9-1,0)-$G$1 -> 11366.1 | O2: =MAX($H$1:OFFSET($H$1,$S$9-1,0)) -> 8765 | P2: =IF(INDEX(G:G,COUNT(G:G))<$S$7,1,0) -> 0 | R2: Oscar G. Cagigas - 27 enero 2020
A3: -700 | B3: 1025 | C3: =IF(C2>$S$7,C2+B3,C2) -> 98175 | D3: =MAX($C$1:C3)-C3 -> 1825 | E3: 1025 | F3: =IF(AND(E3=0,E2=0,E1=0),B3/2,E3) -> 1025 | G3: 98175 | H3: =MAX($C$1:G3)-G3 -> 1825 | K3: -10497.73 | L3: 10497.73 | M3: 1 | N3: 6967.325 | O3: 9458.115 | P3: 0
A4: -1350 | B4: =INDEX(A:A,RANDBETWEEN(1,$S$8)) -> 230 | C4: =IF(C3>$S$7,C3+B4,C3) -> 98405 | D4: =MAX($C$1:C4)-C4 -> 1595 | E4: =IF(D3>drawd2,0,IF(D3>drawd1,B4/2,B4)) -> 230 | F4: =IF(AND(E4=0,E3=0,E2=0),B4/2,E4) -> 230 | G4: =IF(G3>ruina,G3+F4,G3) -> 98405 | H4: =MAX($C$1:G4)-G4 -> 1595 | K4: 26641.42 | L4: 14070 | M4: 0 | N4: 26055.52 | O4: 8350.9 | P4: 0
A5: 1520 | B5: 1780 | C5: 100185 | D5: =MAX($C$1:C5)-C5 -> 0 | E5: 1780 | F5: 1780 | G5: 100185 | H5: =MAX($C$1:G5)-G5 -> 0 | K5: 76193.61 | L5: 11489.48 | M5: 0 | N5: 68831.105 | O5: 10212.505 | P5: 0 | R5: Capital inicial | S5: 100000
A6: -2411.98 | B6: 2075 | C6: 102260 | D6: =MAX($C$1:C6)-C6 -> 0 | E6: 2075 | F6: 2075 | G6: 102260 | H6: =MAX($C$1:G6)-G6 -> 0 | K6: 51896.2 | L6: 13159 | M6: 0 | N6: 45780.7 | O6: 9695.75 | P6: 0 | R6: Histor (años) | S6: 26
A7: -1750 | B7: -812.5 | C7: 101447.5 | D7: =MAX($C$1:C7)-C7 -> 812.5 | E7: -812.5 | F7: -812.5 | G7: 101447.5 | H7: =MAX($C$1:G7)-G7 -> 812.5 | K7: 44566.1 | L7: 11022.5 | M7: 0 | N7: 38877.3 | O7: 12516.2 | P7: 0 | R7: RUINA | S7: 90000
A8: 230 | B8: -3725 | C8: 97722.5 | D8: =MAX($C$1:C8)-C8 -> 4537.5 | E8: -3725 | F8: -3725 | G8: 97722.5 | H8: =MAX($C$1:G8)-G8 -> 4537.5 | K8: 47989.25 | L8: 10287.5 | M8: 0 | N8: 30096.175 | O8: 22503.025 | P8: 0 | R8: Operaciones | S8: =COUNT(A:A) -> 1599
A9: -1420 | B9: -2760 | C9: 94962.5 | D9: =MAX($C$1:C9)-C9 -> 7297.5 | E9: -1380 | F9: -1380 | G9: 96342.5 | H9: =MAX($C$1:G9)-G9 -> 5917.5 | K9: 63407.35 | L9: 8972.5 | M9: 0 | N9: 61242.35 | O9: 8957.5 | P9: 0 | R9: Ops por año | S9: =ROUND($S$8/$S$6,0) -> 62
A10: -1180 | B10: -662.5 | C10: 94300 | D10: =MAX($C$1:C10)-C10 -> 7960 | E10: 0 | F10: 0 | G10: 96342.5 | H10: =MAX($C$1:G10)-G10 -> 5917.5 | K10: -11666.05 | L10: 11666.05 | M10: 1 | N10: -11330.4 | O10: 11330.4 | P10: 1 | R10: DD1 | S10: 3000
A11: -1912.5 | B11: 410 | C11: 94710 | D11: =MAX($C$1:C11)-C11 -> 7550 | E11: 0 | F11: 0 | G11: 96342.5 | H11: =MAX($C$1:G11)-G11 -> 5917.5 | K11: 18721.3 | L11: 9382.5 | M11: 0 | N11: 8816.3 | O11: 19287.5 | P11: 0 | R11: DD2 | S11: 6000
A12: 1520 | B12: -1775 | C12: 92935 | D12: =MAX($C$1:C12)-C12 -> 9325 | E12: 0 | F12: -887.5 | G12: 95455 | H12: =MAX($C$1:G12)-G12 -> 6805 | K12: -10087.5 | L12: 10087.5 | M12: 1 | N12: 147.4 | O12: 9591.05 | P12: 0
A13: -1030 | B13: -1540 | C13: 91395 | D13: =MAX($C$1:C13)-C13 -> 10865 | E13: 0 | F13: -770 | G13: 94685 | H13: =MAX($C$1:G13)-G13 -> 7575 | K13: -10066.25 | L13: 12372.5 | M13: 1 | N13: -10790 | O13: 13096.25 | P13: 1
A14: -2410 | B14: -1680 | C14: 89715 | D14: =MAX($C$1:C14)-C14 -> 12545 | E14: 0 | F14: -840 | G14: 93845 | H14: =MAX($C$1:G14)-G14 -> 8415 | K14: 21250.86 | L14: 21363.32 | M14: 0 | N14: 22773.77 | O14: 10605.41 | P14: 0
A15: 1520 | B15: -700 | C15: 89715 | D15: =MAX($C$1:C15)-C15 -> 12545 | E15: 0 | F15: -350 | G15: 93495 | H15: =MAX($C$1:G15)-G15 -> 8765 | K15: 27224.19 | L15: 7643 | M15: 0 | N15: 5130.44 | O15: 24681.25 | P15: 0
A16: 1805.99 | B16: 1850 | C16: 89715 | D16: =MAX($C$1:C16)-C16 -> 12545 | E16: 0 | F16: 925 | G16: 94420 | H16: =MAX($C$1:G16)-G16 -> 7840 | K16: 44527.3 | L16: 9871.25 | M16: 0 | N16: 27731.675 | O16: 26347.5 | P16: 0
A17: 50 | B17: 4500 | C17: 89715 | D17: =MAX($C$1:C17)-C17 -> 12545 | E17: 0 | F17: 2250 | G17: 96670 | H17: =MAX($C$1:G17)-G17 -> 5590 | K17: 25529.23 | L17: 8731.12 | M17: 0 | N17: 8342.49 | O17: 21929.24 | P17: 0
A18: -1180 | B18: 1250 | C18: 89715 | D18: =MAX($C$1:C18)-C18 -> 12545 | E18: 0 | F18: 625 | G18: 97295 | H18: =MAX($C$1:G18)-G18 -> 4965 | K18: 76696 | L18: 17232.5 | M18: 0 | N18: 71542.4 | O18: 19098.1 | P18: 0
A19: -1725 | B19: 6050 | C19: 89715 | D19: =MAX($C$1:C19)-C19 -> 12545 | E19: 0 | F19: 3025 | G19: 100320 | H19: =MAX($C$1:G19)-G19 -> 1940 | K19: 83777.08 | L19: 23149.7 | M19: 0 | N19: 81497.14 | O19: 14578.1 | P19: 0
A20: -1900 | B20: -500 | C20: 89715 | D20: =MAX($C$1:C20)-C20 -> 12545 | E20: 0 | F20: -250 | G20: 100070 | H20: =MAX($C$1:G20)-G20 -> 2190 | K20: 33473.44 | L20: 7972.5 | M20: 0 | N20: 14899.04 | O20: 21945.7 | P20: 0
A21: 3380 | B21: 2930 | C21: 89715 | D21: =MAX($C$1:C21)-C21 -> 12545 | E21: 0 | F21: 1465 | G21: 101535 | H21: =MAX($C$1:G21)-G21 -> 725 | K21: 8043.09 | L21: 15631.93 | M21: 0 | N21: 4270.355 | O21: 17674.665 | P21: 0
A22: -700 | B22: 2700 | C22: 89715 | D22: =MAX($C$1:C22)-C22 -> 12545 | E22: 0 | F22: 1350 | G22: 102885 | H22: =MAX($C$1:G22)-G22 -> 0 | K22: 46734.8 | L22: 10170.2 | M22: 0 | N22: 44372.4 | O22: 9872.6 | P22: 0
A23: 360 | B23: -3140 | C23: 89715 | D23: =MAX($C$1:C23)-C23 -> 12545 | E23: 0 | F23: -1570 | G23: 101315 | H23: =MAX($C$1:G23)-G23 -> 1570 | K23: 15922.02 | L23: 10637.5 | M23: 0 | N23: -2571.73 | O23: 23578.75 | P23: 0
A24: 7850 | B24: -3280 | C24: 89715 | D24: =MAX($C$1:C24)-C24 -> 12545 | E24: 0 | F24: -1640 | G24: 99675 | H24: =MAX($C$1:G24)-G24 -> 3210 | K24: 77986.77 | L24: 11848.8 | M24: 0 | N24: 50978.07 | O24: 27329.48 | P24: 0
A25: -720 | B25: -1300 | C25: 89715 | D25: =MAX($C$1:C25)-C25 -> 12545 | E25: 0 | F25: -650 | G25: 99025 | H25: =MAX($C$1:G25)-G25 -> 3860 | K25: -10032.5 | L25: 10032.5 | M25: 1 | N25: 16892.65 | O25: 8938.75 | P25: 0
A26: 820 | B26: -80 | C26: 89715 | D26: =MAX($C$1:C26)-C26 -> 12545 | E26: 0 | F26: -40 | G26: 98985 | H26: =MAX($C$1:G26)-G26 -> 3900 | K26: 32422.4 | L26: 19712.5 | M26: 0 | N26: 24333.7 | O26: 15351.2 | P26: 0
A27: -1690 | B27: -1225 | C27: 89715 | D27: =MAX($C$1:C27)-C27 -> 12545 | E27: 0 | F27: -612.5 | G27: 98372.5 | H27: =MAX($C$1:G27)-G27 -> 4512.5 | K27: 59387.2 | L27: 8153.8 | M27: 0 | N27: 36035.45 | O27: 24376.75 | P27: 0
A28: 600 | B28: -980 | C28: 89715 | D28: =MAX($C$1:C28)-C28 -> 12545 | E28: 0 | F28: -490 | G28: 97882.5 | H28: =MAX($C$1:G28)-G28 -> 5002.5 | K28: -10094.2 | L28: 14342.5 | M28: 1 | N28: -10680.2 | O28: 14928.5 | P28: 1
A29: -2240 | B29: -3000 | C29: 89715 | D29: =MAX($C$1:C29)-C29 -> 12545 | E29: 0 | F29: -1500 | G29: 96382.5 | H29: =MAX($C$1:G29)-G29 -> 6502.5 | K29: 10404.6 | L29: 11259.9 | M29: 0 | N29: -1707.18 | O29: 20218.8 | P29: 0
A30: 4430 | B30: 5660 | C30: 89715 | D30: =MAX($C$1:C30)-C30 -> 12545 | E30: 0 | F30: 2830 | G30: 99212.5 | H30: =MAX($C$1:G30)-G30 -> 3672.5 | K30: 20800.83 | L30: 17259.95 | M30: 0 | N30: 22166.405 | O30: 12283.75 | P30: 0
A31: -610 | B31: -287.5 | C31: 89715 | D31: =MAX($C$1:C31)-C31 -> 12545 | E31: 0 | F31: -143.75 | G31: 99068.75 | H31: =MAX($C$1:G31)-G31 -> 3816.25 | K31: 71091.98 | L31: 9720 | M31: 0 | N31: 57946.98 | O31: 15782.5 | P31: 0
A32: -740 | B32: 10243.7 | C32: 89715 | D32: =MAX($C$1:C32)-C32 -> 12545 | E32: 0 | F32: 5121.85 | G32: 104190.6 | H32: =MAX($C$1:G32)-G32 -> 0 | K32: 295.39 | L32: 17180.2 | M32: 0 | N32: 9201.345 | O32: 9629.5 | P32: 0
A33: -840 | B33: -1100 | C33: 89715 | D33: =MAX($C$1:C33)-C33 -> 12545 | E33: 0 | F33: -550 | G33: 103640.6 | H33: =MAX($C$1:G33)-G33 -> 550 | K33: -10099.6 | L33: 16004 | M33: 1 | N33: 2400.45 | O33: 15600.2 | P33: 0
A34: 710 | B34: 1310 | C34: 89715 | D34: =MAX($C$1:C34)-C34 -> 12545 | E34: 0 | F34: 655 | G34: 104295.6 | H34: =MAX($C$1:G34)-G34 -> 0 | K34: 25665.9 | L34: 15217.5 | M34: 0 | N34: 18450.9 | O34: 18731.25 | P34: 0
A35: 5060 | B35: -60 | C35: 89715 | D35: =MAX($C$1:C35)-C35 -> 12545 | E35: 0 | F35: -30 | G35: 104265.6 | H35: =MAX($C$1:G35)-G35 -> 30 | K35: -11539.8 | L35: 13379.7 | M35: 1 | N35: 6089.17 | O35: 11339.88 | P35: 0
A36: -1960 | B36: 1250 | C36: 89715 | D36: =MAX($C$1:C36)-C36 -> 12545 | E36: 0 | F36: 625 | G36: 104890.6 | H36: =MAX($C$1:G36)-G36 -> 0 | K36: 33545.52 | L36: 9027.5 | M36: 0 | N36: 7607.15 | O36: 26817.15 | P36: 0
A37: -750 | B37: -1287.5 | C37: 89715 | D37: =MAX($C$1:C37)-C37 -> 12545 | E37: 0 | F37: -643.75 | G37: 104246.85 | H37: =MAX($C$1:G37)-G37 -> 643.75 | K37: -10025 | L37: 11615 | M37: 1 | N37: 13795.65 | O37: 5981.25 | P37: 0
A38: 900 | B38: -750 | C38: 89715 | D38: =MAX($C$1:C38)-C38 -> 12545 | E38: 0 | F38: -375 | G38: 103871.85 | H38: =MAX($C$1:G38)-G38 -> 1018.75 | K38: -11451.2 | L38: 11451.2 | M38: 1 | N38: 9392.55 | O38: 8189.2 | P38: 0
A39: 20 | B39: 7200 | C39: 89715 | D39: =MAX($C$1:C39)-C39 -> 12545 | E39: 0 | F39: 3600 | G39: 107471.85 | H39: =MAX($C$1:G39)-G39 -> 0 | K39: 20048.72 | L39: 11145 | M39: 0 | N39: 2590 | O39: 28603.72 | P39: 0
A40: -1163 | B40: 200 | C40: 89715 | D40: =MAX($C$1:C40)-C40 -> 12545 | E40: 0 | F40: 100 | G40: 107571.85 | H40: =MAX($C$1:G40)-G40 -> 0 | K40: 39516.15 | L40: 9240 | M40: 0 | N40: 3709.875 | O40: 45046.275 | P40: 0
A41: 1540 | B41: -2850 | C41: 89715 | D41: =MAX($C$1:C41)-C41 -> 12545 | E41: 0 | F41: -1425 | G41: 106146.85 | H41: =MAX($C$1:G41)-G41 -> 1425 | K41: 44403.3 | L41: 13760 | M41: 0 | N41: 21710.8 | O41: 33970 | P41: 0
A42: -900 | B42: 312.5 | C42: 89715 | D42: =MAX($C$1:C42)-C42 -> 12545 | E42: 0 | F42: 156.25 | G42: 106303.1 | H42: =MAX($C$1:G42)-G42 -> 1268.75 | K42: 21981.25 | L42: 22121.25 | M42: 0 | N42: 29897.5 | O42: 14205 | P42: 0
A43: 3720 | B43: -430 | C43: 89715 | D43: =MAX($C$1:C43)-C43 -> 12545 | E43: 0 | F43: -215 | G43: 106088.1 | H43: =MAX($C$1:G43)-G43 -> 1483.75 | K43: -2250.7 | L43: 15077 | M43: 0 | N43: 969.55 | O43: 9641.75 | P43: 0
A44: 1300 | B44: 2300 | C44: 89715 | D44: =MAX($C$1:C44)-C44 -> 12545 | E44: 0 | F44: 1150 | G44: 107238.1 | H44: =MAX($C$1:G44)-G44 -> 333.75 | K44: 11005.82 | L44: 14016.3 | M44: 0 | N44: 9752.91 | O44: 9097.09 | P44: 0
A45: 230 | B45: -3164 | C45: 89715 | D45: =MAX($C$1:C45)-C45 -> 12545 | E45: 0 | F45: -1582 | G45: 105656.1 | H45: =MAX($C$1:G45)-G45 -> 1915.75 | K45: 8497.37 | L45: 18814.15 | M45: 0 | N45: 8294.445 | O45: 14852.075 | P45: 0
A46: -1700 | B46: 1200 | C46: 89715 | D46: =MAX($C$1:C46)-C46 -> 12545 | E46: 0 | F46: 600 | G46: 106256.1 | H46: =MAX($C$1:G46)-G46 -> 1315.75 | K46: 94986.99 | L46: 12586.5 | M46: 0 | N46: 84937.74 | O46: 15489.25 | P46: 0
A47: -850 | B47: -1100 | C47: 89715 | D47: =MAX($C$1:C47)-C47 -> 12545 | E47: 0 | F47: -550 | G47: 105706.1 | H47: =MAX($C$1:G47)-G47 -> 1865.75 | K47: 45173 | L47: 18835.5 | M47: 0 | N47: 29407.6 | O47: 20946.75 | P47: 0
A48: 2780 | B48: -1850 | C48: 89715 | D48: =MAX($C$1:C48)-C48 -> 12545 | E48: 0 | F48: -925 | G48: 104781.1 | H48: =MAX($C$1:G48)-G48 -> 2790.75 | K48: 18963.4 | L48: 20222.5 | M48: 0 | N48: 18566.65 | O48: 14448.75 | P48: 0
A49: 1500 | B49: 1550 | C49: 89715 | D49: =MAX($C$1:C49)-C49 -> 12545 | E49: 0 | F49: 775 | G49: 105556.1 | H49: =MAX($C$1:G49)-G49 -> 2015.75 | K49: 107109.92 | L49: 5280 | M49: 0 | N49: 92796.56 | O49: 17193.36 | P49: 0
A50: -1150 | B50: 600 | C50: 89715 | D50: =MAX($C$1:C50)-C50 -> 12545 | E50: 0 | F50: 300 | G50: 105856.1 | H50: =MAX($C$1:G50)-G50 -> 1715.75 | K50: -15036.25 | L50: 17436.25 | M50: 1 | N50: 7383.07 | O50: 10243.125 | P50: 0
A51: 1100 | B51: -200 | C51: 89715 | D51: =MAX($C$1:C51)-C51 -> 12545 | E51: 0 | F51: -100 | G51: 105756.1 | H51: =MAX($C$1:G51)-G51 -> 1815.75 | K51: 2900.31 | L51: 18184.3 | M51: 0 | N51: 8492.46 | O51: 11127.15 | P51: 0
A52: -1480 | B52: 2060 | C52: 89715 | D52: =MAX($C$1:C52)-C52 -> 12545 | E52: 0 | F52: 1030 | G52: 106786.1 | H52: =MAX($C$1:G52)-G52 -> 785.75 | K52: 22053.1 | L52: 12367 | M52: 0 | N52: 7419.7 | O52: 22725.4 | P52: 0
A53: 6230 | B53: 7725 | C53: 89715 | D53: =MAX($C$1:C53)-C53 -> 12545 | E53: 0 | F53: 3862.5 | G53: 110648.6 | H53: =MAX($C$1:G53)-G53 -> 0 | K53: -11103.18 | L53: 15963.18 | M53: 1 | N53: -10396.25 | O53: 15256.25 | P53: 1
A54: -1662 | B54: 312.5 | C54: 89715 | D54: =MAX($C$1:C54)-C54 -> 12545 | E54: 0 | F54: 156.25 | G54: 110804.85 | H54: =MAX($C$1:G54)-G54 -> 0 | K54: -10412.8 | L54: 10412.8 | M54: 1 | N54: -3868.55 | O54: 8097.75 | P54: 0
A55: -1060 | B55: -720 | C55: 89715 | D55: =MAX($C$1:C55)-C55 -> 12545 | E55: 0 | F55: -360 | G55: 110444.85 | H55: =MAX($C$1:G55)-G55 -> 360 | K55: 49319.85 | L55: 10193.8 | M55: 0 | N55: 33672.885 | O55: 20993.56 | P55: 0
A56: 1050 | B56: 1937.5 | C56: 89715 | D56: =MAX($C$1:C56)-C56 -> 12545 | E56: 0 | F56: 968.75 | G56: 111413.6 | H56: =MAX($C$1:G56)-G56 -> 0 | K56: 70736.56 | L56: 9660 | M56: 0 | N56: 63250.31 | O56: 10047.96 | P56: 0
A57: -976 | B57: -1720 | C57: 89715 | D57: =MAX($C$1:C57)-C57 -> 12545 | E57: 0 | F57: -860 | G57: 110553.6 | H57: =MAX($C$1:G57)-G57 -> 860 | K57: 57633.7 | L57: 9255 | M57: 0 | N57: 46381.25 | O57: 12139.95 | P57: 0
A58: -1690 | B58: -4400 | C58: 89715 | D58: =MAX($C$1:C58)-C58 -> 12545 | E58: 0 | F58: -2200 | G58: 108353.6 | H58: =MAX($C$1:G58)-G58 -> 3060 | K58: -10465.49 | L58: 12827.5 | M58: 1 | N58: -10961.495 | O58: 13323.505 | P58: 1
A59: -100 | B59: -700 | C59: 89715 | D59: =MAX($C$1:C59)-C59 -> 12545 | E59: 0 | F59: -350 | G59: 108003.6 | H59: =MAX($C$1:G59)-G59 -> 3410 | K59: 56967 | L59: 9145 | M59: 0 | N59: 42159.5 | O59: 19802.5 | P59: 0
A60: -3164 | B60: -1087.5 | C60: 89715 | D60: =MAX($C$1:C60)-C60 -> 12545 | E60: 0 | F60: -543.75 | G60: 107459.85 | H60: =MAX($C$1:G60)-G60 -> 3953.75 | K60: -5791.06 | L60: 20709.35 | M60: 0 | N60: 274.37 | O60: 13609.975 | P60: 0
A61: 1560 | B61: 8825 | C61: 89715 | D61: =MAX($C$1:C61)-C61 -> 12545 | E61: 0 | F61: 4412.5 | G61: 111872.35 | H61: =MAX($C$1:G61)-G61 -> 0 | K61: 19040.75 | L61: 12199.25 | M61: 0 | N61: 7717 | O61: 13523.75 | P61: 0
A62: -1940 | B62: -1012.5 | C62: 89715 | D62: =MAX($C$1:C62)-C62 -> 12545 | E62: 0 | F62: -506.25 | G62: 111366.1 | H62: =MAX($C$1:G62)-G62 -> 506.25 | K62: -10910 | L62: 12060 | M62: 1 | N62: 13277.845 | O62: 9230 | P62: 0
A63: 1700 | B63: 2280 | C63: 89715 | D63: =MAX($C$1:C63)-C63 -> 12545 | E63: 0 | F63: 1140 | G63: 112506.1 | H63: =MAX($C$1:G63)-G63 -> 0 | K63: 59598.29 | L63: 7351.3 | M63: 0 | N63: -10593.8 | O63: 76162.09 | P63: 1
A64: -440 | K64: -10260 | L64: 10260 | M64: 1 | N64: 7841.35 | O64: 7807 | P64: 0
A65: 1610 | K65: 35543.5 | L65: 11412.5 | M65: 0 | N65: 20231.75 | O65: 20256.75 | P65: 0
A66: 3380 | K66: 72557.8 | L66: 9870 | M66: 0 | N66: 57734.05 | O66: 17133.75 | P66: 0
A67: -400 | K67: 79505.52 | L67: 7815 | M67: 0 | N67: 56469.27 | O67: 24023.75 | P67: 0
A68: 1340 | K68: 83583.52 | L68: 9171 | M68: 0 | N68: 23136.02 | O68: 64065 | P68: 0
A69: 1100 | K69: 58840.02 | L69: 7362.5 | M69: 0 | N69: 37062.64 | O69: 24527.38 | P69: 0
A70: 160 | K70: 59573.8 | L70: 8864.5 | M70: 0 | N70: 52368.3 | O70: 13178 | P70: 0
A71: 740 | K71: 30091.6 | L71: 11263.5 | M71: 0 | N71: 20385.8 | O71: 18360.8 | P71: 0
A72: -820 | K72: 26252.82 | L72: 16312.7 | M72: 0 | N72: 10760.92 | O72: 21329.4 | P72: 0
A73: -1300 | K73: 15884.81 | L73: 19647.22 | M73: 0 | N73: 8675.98 | O73: 24896.05 | P73: 0
A74: -1300 | K74: 5181.68 | L74: 10207.5 | M74: 0 | N74: 1700.43 | O74: 13688.75 | P74: 0
A75: -980 | K75: -10577.5 | L75: 12027.5 | M75: 1 | N75: -10191.35 | O75: 11641.35 | P75: 1
A76: -1420 | K76: 45319.2 | L76: 7457.5 | M76: 0 | N76: 24902.1 | O76: 22847.1 | P76: 0
A77: 88 | K77: 42107.68 | L77: 8446.02 | M77: 0 | N77: 33858.7 | O77: 16695 | P77: 0
A78: -1400 | K78: 23337.1 | L78: 15575.6 | M78: 0 | N78: 19154.2 | O78: 9477.9 | P78: 0
A79: -940 | K79: 31060.32 | L79: 13011.2 | M79: 0 | N79: 24547.17 | O79: 12095.65 | P79: 0
A80: -2100 | K80: 132559.95 | L80: 6643.8 | M80: 0 | N80: 102008.1 | O80: 32901.85 | P80: 0
A81: 150 | K81: 43939.75 | L81: 10226.5 | M81: 0 | N81: 30782.75 | O81: 19445.75 | P81: 0
A82: 5775 | K82: 14558.07 | L82: 15556.78 | M82: 0 | N82: 9058.55 | O82: 17895.65 | P82: 0
A83: -1300 | K83: 61752.7 | L83: 12596.1 | M83: 0 | N83: 58661.4 | O83: 6709.9 | P83: 0
A84: -1974 | K84: 24665.78 | L84: 12052.5 | M84: 0 | N84: 14063.88 | O84: 20826.9 | P84: 0
A85: -2474 | K85: 8909.1 | L85: 9600.7 | M85: 0 | N85: -10460.2 | O85: 20950.6 | P85: 1
A86: -2080 | K86: 23567.82 | L86: 19065.98 | M86: 0 | N86: 15294.56 | O86: 15474.24 | P86: 0
A87: 890 | K87: 18112.87 | L87: 18832.23 | M87: 0 | N87: 20709.995 | O87: 16235.105 | P87: 0
A88: 1280 | K88: 35015 | L88: 11425 | M88: 0 | N88: 17530 | O88: 22891.25 | P88: 0
A89: -1480 | K89: 37648.42 | L89: 12578.8 | M89: 0 | N89: 32727.42 | O89: 9550.05 | P89: 0
A90: 312.5 | K90: 4553.9 | L90: 29067.4 | M90: 0 | N90: 13075.1 | O90: 15506.2 | P90: 0
A91: 10493 | K91: -11291.2 | L91: 11291.2 | M91: 1 | N91: 37196.875 | O91: 5966.85 | P91: 0
A92: 3337.98 | K92: 70079.5 | L92: 11942.5 | M92: 0 | N92: 44615.95 | O92: 37406.05 | P92: 0
A93: -2275 | K93: 23857.6 | L93: 8295 | M93: 0 | N93: 15453.25 | O93: 12589.35 | P93: 0
A94: -1350 | K94: 43256.08 | L94: 14675 | M94: 0 | N94: 37957.98 | O94: 8903.75 | P94: 0
A95: -450 | K95: -11037 | L95: 12267 | M95: 1 | N95: -11188 | O95: 12418 | P95: 1
A96: -730 | K96: 38088.84 | L96: 11291.51 | M96: 0 | N96: 33139.45 | O96: 16240.9 | P96: 0
A97: 2020 | K97: 83170.64 | L97: 9038.8 | M97: 0 | N97: 43690.795 | O97: 41869.845 | P97: 0
A98: 620 | K98: 22929.7 | L98: 11801.6 | M98: 0 | N98: 17001.16 | O98: 14444.15 | P98: 0
A99: 1970 | K99: 13854.9 | L99: 12294.3 | M99: 0 | N99: 2554.85 | O99: 19416.85 | P99: 0
A100: 500 | K100: 46851.9 | L100: 9261.3 | M100: 0 | N100: 36715.2 | O100: 14504.25 | P100: 0
A101: 110 | K101: -3269 | L101: 14022.5 | M101: 0 | N101: -14953.125 | O101: 24686.625 | P101: 1
A102: -880 | K102: 46971.2 | L102: 9341.3 | M102: 0 | N102: 40048.15 | O102: 13479.35 | P102: 0
A103: 1600 | K103: 19382.8 | L103: 14192.5 | M103: 0 | N103: 17992.1 | O103: 10149.4 | P103: 0
A104: 1550 | K104: 18145.15 | L104: 12967.5 | M104: 0 | N104: 12013.8 | O104: 9935 | P104: 0
A105: -940 | K105: 46556.7 | L105: 10935 | M105: 0 | N105: 34690.325 | O105: 17420.125 | P105: 0
A106: -880 | K106: -11653.75 | L106: 17855.75 | M106: 1 | N106: -10561.225 | O106: 16763.225 | P106: 1
A107: -887.5 | K107: -10795.1 | L107: 15143.8 | M107: 1 | N107: -10322.6 | O107: 14671.3 | P107: 1
A108: -1360 | K108: 46358.47 | L108: 16941.18 | M108: 0 | N108: 50287.21 | O108: 13012.44 | P108: 0
A109: 1182.01 | K109: 44711.75 | L109: 6462.5 | M109: 0 | N109: 31228 | O109: 16967.5 | P109: 0
A110: -1930 | K110: -11692.5 | L110: 13242.5 | M110: 1 | N110: 25310.11 | O110: 7620.65 | P110: 0
A111: 650 | K111: 57169.86 | L111: 10960 | M111: 0 | N111: 27949.045 | O111: 31639.565 | P111: 0
A112: 710 | K112: -4032.4 | L112: 22276.2 | M112: 0 | N112: -3986.8 | O112: 20805.6 | P112: 0
A113: -20 | K113: 33950.02 | L113: 27650 | M113: 0 | N113: 25083.77 | O113: 13226.25 | P113: 0
A114: 300 | K114: 45352.98 | L114: 15105 | M114: 0 | N114: 38051.73 | O114: 15016.25 | P114: 0
A115: -1500 | K115: 72900.75 | L115: 12956.5 | M115: 0 | N115: 53699.075 | O115: 21521.675 | P115: 0
A116: -911.98 | K116: 19990.05 | L116: 10920 | M116: 0 | N116: 10223.825 | O116: 17646.275 | P116: 0
A117: -2860 | K117: 15955.02 | L117: 18271.2 | M117: 0 | N117: 730.02 | O117: 29061.2 | P117: 0
A118: -1150 | K118: 71181.55 | L118: 17812.5 | M118: 0 | N118: 56827.15 | O118: 24133.15 | P118: 0
A119: 2587.98 | K119: 33545.82 | L119: 16151.3 | M119: 0 | N119: -10605 | O119: 46728.32 | P119: 1
A120: 4700 | K120: 27431.17 | L120: 15990.8 | M120: 0 | N120: 29845.11 | O120: 13205 | P120: 0
A121: -850 | K121: 43039.88 | L121: 10490 | M121: 0 | N121: 38860.63 | O121: 7950 | P121: 0
A122: 425 | K122: 31668.02 | L122: 13928.7 | M122: 0 | N122: 24787.92 | O122: 9795.75 | P122: 0
A123: 3860 | K123: 22925.45 | L123: 23693.8 | M123: 0 | N123: 16754.2 | O123: 29865.05 | P123: 0
A124: 5800 | K124: -11486.51 | L124: 12175 | M124: 1 | N124: -10196.02 | O124: 10884.51 | P124: 1
A125: 21420 | K125: 9802.15 | L125: 18764.15 | M125: 0 | N125: 18157 | O125: 8964.3 | P125: 0
A126: 3780 | K126: 38696.7 | L126: 10884.3 | M126: 0 | N126: 28374.3 | O126: 14747.8 | P126: 0
A127: 4350 | K127: -12038.7 | L127: 13126.2 | M127: 1 | N127: 5559.585 | O127: 9204.35 | P127: 0
A128: 776 | K128: 45928.52 | L128: 8631.98 | M128: 0 | N128: 28437.87 | O128: 22065.65 | P128: 0
A129: -450 | K129: -13218.8 | L129: 18058.8 | M129: 1 | N129: -8234.375 | O129: 13921.875 | P129: 0
A130: -1000 | K130: -10241.5 | L130: 10241.5 | M130: 1 | N130: -884.75 | O130: 7816.5 | P130: 0
A131: -662.5 | K131: 22041.1 | L131: 9728.6 | M131: 0 | N131: -5529.8 | O131: 28945.9 | P131: 0
A132: 1340 | K132: 19911.7 | L132: 6831.3 | M132: 0 | N132: -2678.3 | O132: 25650 | P132: 0
A133: 1040 | K133: 51006.82 | L133: 10838.8 | M133: 0 | N133: 32617.81 | O133: 18514.01 | P133: 0
A134: -775 | K134: 28224.4 | L134: 14736.25 | M134: 0 | N134: 23716.325 | O134: 13498.725 | P134: 0
A135: 4400 | K135: 14171.63 | L135: 11918.75 | M135: 0 | N135: 8282.065 | O135: 13699.565 | P135: 0
A136: -1637.5 | K136: 26433.32 | L136: 18516.5 | M136: 0 | N136: 14507.82 | O136: 15075.5 | P136: 0
A137: -1562.5 | K137: 55543.18 | L137: 15283.82 | M137: 0 | N137: 44320.83 | O137: 16869.66 | P137: 0
A138: 1055.99 | K138: -13132.5 | L138: 13132.5 | M138: 1 | N138: 9775.165 | O138: 7181.25 | P138: 0
A139: 9340 | K139: 198.2 | L139: 22699.3 | M139: 0 | N139: 3225.35 | O139: 19182.15 | P139: 0
A140: 4310 | K140: -10282.5 | L140: 10672.5 | M140: 1 | N140: 4942.04 | O140: 7513.75 | P140: 0
A141: 3000 | K141: 81370.6 | L141: 7237.5 | M141: 0 | N141: 60706.58 | O141: 23489.02 | P141: 0
A142: 556 | K142: 34222.6 | L142: 12510 | M142: 0 | N142: 6796.3 | O142: 35661.3 | P142: 0
A143: 8900 | K143: 19830.78 | L143: 7582.5 | M143: 0 | N143: 8710.95 | O143: 15021.85 | P143: 0
A144: 1520 | K144: -11470 | L144: 12810 | M144: 1 | N144: -10118.75 | O144: 11458.75 | P144: 1
A145: 460 | K145: -11982.5 | L145: 13862.5 | M145: 1 | N145: 10017.74 | O145: 10763.15 | P145: 0
A146: 3620 | K146: 12322.29 | L146: 15316.51 | M146: 0 | N146: 1158.645 | O146: 17349.505 | P146: 0
A147: -1000 | K147: 37356.3 | L147: 13545 | M147: 0 | N147: 27431.875 | O147: 14984.425 | P147: 0
A148: 12100 | K148: 46986.12 | L148: 18871.98 | M148: 0 | N148: 50738.62 | O148: 15119.48 | P148: 0
A149: 2350 | K149: 61904.47 | L149: 10485.48 | M149: 0 | N149: 54739.11 | O149: 14427.09 | P149: 0
A150: -1250 | K150: -10525.1 | L150: 13847.6 | M150: 1 | N150: -6025.05 | O150: 10777.55 | P150: 0
A151: -68 | K151: -10106.4 | L151: 22958.9 | M151: 1 | N151: -10497.625 | O151: 23350.125 | P151: 1
A152: 4440 | K152: 55237.1 | L152: 11712.6 | M152: 0 | N152: 38167.15 | O152: 23863.8 | P152: 0
A153: -500 | K153: 58813.12 | L153: 12074.9 | M153: 0 | N153: 46371.77 | O153: 14213.85 | P153: 0
A154: -390 | K154: -11816.3 | L154: 11816.3 | M154: 1 | N154: 12819.05 | O154: 11258.15 | P154: 0
A155: 230 | K155: -11812.43 | L155: 19309.93 | M155: 1 | N155: -10777.865 | O155: 18275.365 | P155: 1
A156: -1131 | K156: 75502.7 | L156: 5705.1 | M156: 0 | N156: 66697.1 | O156: 11238.2 | P156: 0
A157: 25 | K157: -11287.96 | L157: 16199.95 | M157: 1 | N157: 4129.54 | O157: 12537.475 | P157: 0
A158: 3820 | K158: -10025 | L158: 10025 | M158: 1 | N158: 3342.4 | O158: 9219.5 | P158: 0
A159: -900 | K159: 87197.82 | L159: 11340 | M159: 0 | N159: 75247.82 | O159: 14300 | P159: 0
A160: 670 | K160: -2616.6 | L160: 27145.4 | M160: 0 | N160: 2841.1 | O160: 18802.7 | P160: 0
A161: 4400 | K161: 8366.25 | L161: 13122.5 | M161: 0 | N161: 5026.875 | O161: 12660 | P161: 0
A162: -1000 | K162: 22880.57 | L162: 21442.8 | M162: 0 | N162: 17824.58 | O162: 20324.55 | P162: 0
A163: -1882 | K163: -6843.93 | L163: 19474.73 | M163: 0 | N163: -10311.075 | O163: 20279.375 | P163: 1
A164: 1600 | K164: -11957.55 | L164: 12688.75 | M164: 1 | N164: -10715.8 | O164: 11447 | P164: 1
A165: 80 | K165: 33020.28 | L165: 10637.5 | M165: 0 | N165: 25113.24 | O165: 11924.54 | P165: 0
A166: -1200 | K166: 8110.9 | L166: 10139.82 | M166: 0 | N166: -5687.56 | O166: 20798.46 | P166: 0
A167: -450 | K167: -10180.48 | L167: 13277.98 | M167: 1 | N167: 6285.385 | O167: 10782.5 | P167: 0
A168: 5380 | K168: 30551.9 | L168: 15995 | M168: 0 | N168: 21471.3 | O168: 23226.85 | P168: 0
A169: 950 | K169: 46999.15 | L169: 11695 | M169: 0 | N169: 23002.4 | O169: 29646.75 | P169: 0
A170: 1180 | K170: 22305.85 | L170: 10127.5 | M170: 0 | N170: -5762.15 | O170: 32844.25 | P170: 0
A171: -1375 | K171: -10250 | L171: 13272.5 | M171: 1 | N171: 10357.875 | O171: 9923.75 | P171: 0
A172: 1670 | K172: -11708.6 | L172: 17162.4 | M172: 1 | N172: 7959.45 | O172: 12435.65 | P172: 0
A173: -660 | K173: 43386.98 | L173: 10205 | M173: 0 | N173: 28447.03 | O173: 21709.3 | P173: 0
A174: -580 | K174: -10373.18 | L174: 13851.2 | M174: 1 | N174: 28421.82 | O174: 11514.35 | P174: 0
A175: -1140 | K175: -1517.73 | L175: 16651.2 | M175: 0 | N175: -10343.28 | O175: 23039.25 | P175: 1
A176: 3025 | K176: 57597.17 | L176: 11950 | M176: 0 | N176: 46626.76 | O176: 18044.51 | P176: 0
A177: -1000 | K177: 34235.97 | L177: 21098.8 | M177: 0 | N177: 21939.185 | O177: 18527.95 | P177: 0
A178: -2500 | K178: 52830.1 | L178: 15288.8 | M178: 0 | N178: 46060.8 | O178: 9371.65 | P178: 0
A179: -1950 | K179: -12093.7 | L179: 12093.7 | M179: 1 | N179: -10470.205 | O179: 10470.205 | P179: 1
A180: 6740 | K180: 43617.5 | L180: 13181.25 | M180: 0 | N180: 42049.375 | O180: 6805.625 | P180: 0
A181: -920 | K181: 31243.89 | L181: 18511.3 | M181: 0 | N181: 21115.14 | O181: 15878.75 | P181: 0
A182: 3000 | K182: 31344.23 | L182: 9096.25 | M182: 0 | N182: 22284.23 | O182: 12508 | P182: 0
A183: -1080 | K183: 37311.9 | L183: 11997.5 | M183: 0 | N183: 34656.64 | O183: 13481.51 | P183: 0
A184: 3275 | K184: 9770.3 | L184: 15286.7 | M184: 0 | N184: 2440.65 | O184: 18631.35 | P184: 0
A185: 780 | K185: -16596.72 | L185: 21059.22 | M185: 1 | N185: 27740.4 | O185: 11840.85 | P185: 0
A186: -1630 | K186: 33963.19 | L186: 12095 | M186: 0 | N186: 22596.095 | O186: 14087.095 | P186: 0
A187: -1900 | K187: -10620 | L187: 10620 | M187: 1 | N187: 10386.86 | O187: 7105.025 | P187: 0
A188: 2280 | K188: 17924.48 | L188: 11167.5 | M188: 0 | N188: 7447.74 | O188: 18835.49 | P188: 0
A189: 10220 | K189: 5602.82 | L189: 23243.28 | M189: 0 | N189: -1443.59 | O189: 22341.64 | P189: 0
A190: -960 | K190: -10440.5 | L190: 12860.5 | M190: 1 | N190: -2087.1 | O190: 11420.85 | P190: 0
A191: 3540 | K191: -11052.65 | L191: 12102.65 | M191: 1 | N191: -10210.075 | O191: 11260.075 | P191: 1
A192: -60 | K192: 36672.08 | L192: 10746.02 | M192: 0 | N192: 11089.68 | O192: 27742.4 | P192: 0
A193: 1630 | K193: 24015 | L193: 8820.1 | M193: 0 | N193: -10256.15 | O193: 35796.15 | P193: 1
A194: -730 | K194: 55197.37 | L194: 18139.4 | M194: 0 | N194: 52529.445 | O194: 12245.325 | P194: 0
A195: 1020 | K195: 6255.02 | L195: 16971 | M195: 0 | N195: 9549.76 | O195: 13676.26 | P195: 0
A196: -170 | K196: 46218.53 | L196: 13410 | M196: 0 | N196: 38506.98 | O196: 11215.15 | P196: 0
A197: -600 | K197: 67358.75 | L197: 9362.5 | M197: 0 | N197: 61258.75 | O197: 9947.5 | P197: 0
A198: 1625 | K198: 62621.8 | L198: 10985.5 | M198: 0 | N198: 53782.3 | O198: 12659.5 | P198: 0
A199: 3290 | K199: 44093.8 | L199: 15690 | M199: 0 | N199: 43932.55 | O199: 10036.25 | P199: 0
A200: -2950 | K200: 50328.91 | L200: 8550 | M200: 0 | N200: 34008.855 | O200: 20149.295 | P200: 0
... 1399 more rows

Sheet ganancia
A1: =C1/500 -> 0.002 | B1: -16596.72 | C1: 1
A2: =C2/500 -> 0.004 | B2: -15036.25 | C2: 2
A3: 0.006 | B3: -13806.2 | C3: 3
A4: 0.008 | B4: -13259.36 | C4: 4
A5: 0.01 | B5: -13218.8 | C5: 5
A6: 0.012 | B6: -13132.5 | C6: 6
A7: 0.014 | B7: -12666.3 | C7: 7
A8: 0.016 | B8: -12455 | C8: 8
A9: 0.018 | B9: -12093.7 | C9: 9
A10: 0.02 | B10: -12038.7 | C10: 10
A11: 0.022 | B11: -11997.31 | C11: 11
A12: 0.024 | B12: -11982.5 | C12: 12
A13: 0.026 | B13: -11957.55 | C13: 13
A14: 0.028 | B14: -11917.5 | C14: 14
A15: 0.03 | B15: -11880 | C15: 15
A16: 0.032 | B16: -11877.5 | C16: 16
A17: 0.034 | B17: -11870 | C17: 17
A18: 0.036 | B18: -11842.5 | C18: 18
A19: 0.038 | B19: -11816.3 | C19: 19
A20: 0.04 | B20: -11812.43 | C20: 20
A21: 0.042 | B21: -11774.78 | C21: 21
A22: 0.044 | B22: -11745.34 | C22: 22
A23: 0.046 | B23: -11715 | C23: 23
A24: 0.048 | B24: -11708.6 | C24: 24 | E24: Percentil | F24: Valor | H24: La ganancia media es de | J24: =F25 -> 24015 | K24: dólares
A25: 0.05 | B25: -11692.5 | C25: 25 | E25: 0.5 | F25: =VLOOKUP(E25,$A$1:$B$500,2,TRUE) -> 24015 | H25: Con un 95% de confianza la ganancia será mayor de | L25: =F26 -> -11692.5 | M25: dólares
A26: 0.052 | B26: -11691.85 | C26: 26 | E26: 0.05 | F26: =VLOOKUP(E26,$A$1:$B$500,2,TRUE) -> -11692.5 | H26: Con un 95% de confianza la ganancia será menos de | L26: =F27 -> 76193.61 | M26: dólares
A27: 0.054 | B27: -11666.05 | C27: 27 | E27: 0.95 | F27: =VLOOKUP(E27,$A$1:$B$500,2,TRUE) -> 76193.61 | H27: La probabilidad de ganar | J27: =datos!$S$5 -> 100000 | K27: es del | L27: =1-OFFSET($A$1,VLOOKUP($J$27,$B$1:$C$500,2,TRUE),0) -> 0.004
A28: 0.056 | B28: -11653.75 | C28: 28 | H28: La probabilidad de ganar | J28: =datos!$S$5/2 -> 50000 | K28: es del | L28: =1-OFFSET($A$1,VLOOKUP($J$28,$B$1:$C$500,2,TRUE),0) -> 0.186
A29: 0.058 | B29: -11576.3 | C29: 29 | H29: La probabilidad de terminar el año en pérdidas es del | L29: =OFFSET($A$1,VLOOKUP(0,$B$1:$C$500,2,TRUE),0) -> 0.274
A30: 0.06 | B30: -11539.8 | C30: 30
A31: 0.062 | B31: -11486.51 | C31: 31
A32: 0.064 | B32: -11479.75 | C32: 32
A33: 0.066 | B33: -11477.7 | C33: 33
A34: 0.068 | B34: -11471.1 | C34: 34
A35: 0.07 | B35: -11470 | C35: 35
A36: 0.072 | B36: -11451.2 | C36: 36
A37: 0.074 | B37: -11443.7 | C37: 37
A38: 0.076 | B38: -11438.2 | C38: 38
A39: 0.078 | B39: -11419.25 | C39: 39
A40: 0.08 | B40: -11318.8 | C40: 40
A41: 0.082 | B41: -11307.94 | C41: 41
A42: 0.084 | B42: -11291.2 | C42: 42
A43: 0.086 | B43: -11289.97 | C43: 43
A44: 0.088 | B44: -11287.96 | C44: 44
A45: 0.09 | B45: -11215 | C45: 45
A46: 0.092 | B46: -11205.2 | C46: 46
A47: 0.094 | B47: -11132.5 | C47: 47
A48: 0.096 | B48: -11103.18 | C48: 48
A49: 0.098 | B49: -11052.65 | C49: 49
A50: 0.1 | B50: -11037 | C50: 50
A51: 0.102 | B51: -11018.8 | C51: 51
A52: 0.104 | B52: -10933.22 | C52: 52
A53: 0.106 | B53: -10917.5 | C53: 53
A54: 0.108 | B54: -10910 | C54: 54
A55: 0.11 | B55: -10905 | C55: 55
A56: 0.112 | B56: -10900.6 | C56: 56
A57: 0.114 | B57: -10886.07 | C57: 57
A58: 0.116 | B58: -10865.78 | C58: 58
A59: 0.118 | B59: -10813.72 | C59: 59
A60: 0.12 | B60: -10800 | C60: 60
A61: 0.122 | B61: -10795.1 | C61: 61
A62: 0.124 | B62: -10762.5 | C62: 62
A63: 0.126 | B63: -10751.3 | C63: 63
A64: 0.128 | B64: -10715 | C64: 64
A65: 0.13 | B65: -10681.25 | C65: 65
A66: =C66/500 -> 0.132 | B66: -10680 | C66: 66
A67: 0.134 | B67: -10670.68 | C67: 67
A68: 0.136 | B68: -10665 | C68: 68
A69: 0.138 | B69: -10661.3 | C69: 69
A70: 0.14 | B70: -10640 | C70: 70
A71: 0.142 | B71: -10620 | C71: 71
A72: 0.144 | B72: -10615.45 | C72: 72
A73: 0.146 | B73: -10603.7 | C73: 73
A74: 0.148 | B74: -10577.5 | C74: 74
A75: 0.15 | B75: -10577.5 | C75: 75
A76: 0.152 | B76: -10561.2 | C76: 76
A77: 0.154 | B77: -10538.8 | C77: 77
A78: 0.156 | B78: -10525.1 | C78: 78
A79: 0.158 | B79: -10502.5 | C79: 79
A80: 0.16 | B80: -10497.73 | C80: 80
A81: 0.162 | B81: -10485.51 | C81: 81
A82: 0.164 | B82: -10465.49 | C82: 82
A83: 0.166 | B83: -10440.5 | C83: 83
A84: 0.168 | B84: -10437.55 | C84: 84
A85: 0.17 | B85: -10412.8 | C85: 85
A86: 0.172 | B86: -10394.48 | C86: 86
A87: 0.174 | B87: -10373.18 | C87: 87
A88: 0.176 | B88: -10372.5 | C88: 88
A89: 0.178 | B89: -10335.3 | C89: 89
A90: 0.18 | B90: -10317 | C90: 90
A91: 0.182 | B91: -10300 | C91: 91
A92: 0.184 | B92: -10283.2 | C92: 92
A93: 0.186 | B93: -10282.5 | C93: 93
A94: 0.188 | B94: -10266.5 | C94: 94
A95: 0.19 | B95: -10260 | C95: 95
A96: 0.192 | B96: -10250 | C96: 96
A97: 0.194 | B97: -10241.5 | C97: 97
A98: 0.196 | B98: -10240 | C98: 98
A99: 0.198 | B99: -10216.2 | C99: 99
A100: 0.2 | B100: -10185.05 | C100: 100
A101: 0.202 | B101: -10180.48 | C101: 101
A102: 0.204 | B102: -10179.5 | C102: 102
A103: 0.206 | B103: -10167.5 | C103: 103
A104: 0.208 | B104: -10139.6 | C104: 104
A105: 0.21 | B105: -10137.6 | C105: 105
A106: 0.212 | B106: -10121.2 | C106: 106
A107: 0.214 | B107: -10106.4 | C107: 107
A108: 0.216 | B108: -10099.6 | C108: 108
A109: 0.218 | B109: -10094.2 | C109: 109
A110: 0.22 | B110: -10087.5 | C110: 110
A111: 0.222 | B111: -10087.4 | C111: 111
A112: 0.224 | B112: -10066.25 | C112: 112
A113: 0.226 | B113: -10065.99 | C113: 113
A114: 0.228 | B114: -10050 | C114: 114
A115: 0.23 | B115: -10049.5 | C115: 115
A116: 0.232 | B116: -10033.75 | C116: 116
A117: 0.234 | B117: -10032.5 | C117: 117
A118: 0.236 | B118: -10030.48 | C118: 118
A119: 0.238 | B119: -10025 | C119: 119
A120: 0.24 | B120: -10025 | C120: 120
A121: 0.242 | B121: -10019.01 | C121: 121
A122: 0.244 | B122: -10009.7 | C122: 122
A123: 0.246 | B123: -8975.63 | C123: 123
A124: 0.248 | B124: -6843.93 | C124: 124
A125: 0.25 | B125: -6329.58 | C125: 125
A126: 0.252 | B126: -5791.06 | C126: 126
A127: 0.254 | B127: -4206.12 | C127: 127
A128: 0.256 | B128: -4159 | C128: 128
A129: 0.258 | B129: -4032.4 | C129: 129
A130: =C130/500 -> 0.26 | B130: -3707.02 | C130: 130
A131: 0.262 | B131: -3269 | C131: 131
A132: 0.264 | B132: -3248.8 | C132: 132
A133: 0.266 | B133: -2616.6 | C133: 133
A134: 0.268 | B134: -2250.7 | C134: 134
A135: 0.27 | B135: -1517.73 | C135: 135
A136: 0.272 | B136: -1258.75 | C136: 136
A137: 0.274 | B137: 198.2 | C137: 137
A138: 0.276 | B138: 295.39 | C138: 138
A139: 0.278 | B139: 379.18 | C139: 139
A140: 0.28 | B140: 470.09 | C140: 140
A141: 0.282 | B141: 591 | C141: 141
A142: 0.284 | B142: 640.1 | C142: 142
A143: 0.286 | B143: 1403.08 | C143: 143
A144: 0.288 | B144: 2113.72 | C144: 144
A145: 0.29 | B145: 2489.11 | C145: 145
A146: 0.292 | B146: 2900.31 | C146: 146
A147: 0.294 | B147: 3976.3 | C147: 147
A148: 0.296 | B148: 4230.5 | C148: 148
A149: 0.298 | B149: 4309.6 | C149: 149
A150: 0.3 | B150: 4421.5 | C150: 150
A151: 0.302 | B151: 4553.9 | C151: 151
A152: 0.304 | B152: 4633.8 | C152: 152
A153: 0.306 | B153: 4735.62 | C153: 153
A154: 0.308 | B154: 4826.35 | C154: 154
A155: 0.31 | B155: 5181.68 | C155: 155
A156: 0.312 | B156: 5427.2 | C156: 156
A157: 0.314 | B157: 5602.82 | C157: 157
A158: 0.316 | B158: 5613.76 | C158: 158
A159: 0.318 | B159: 6255.02 | C159: 159
A160: 0.32 | B160: 6369.42 | C160: 160
A161: 0.322 | B161: 8043.09 | C161: 161
A162: 0.324 | B162: 8110.9 | C162: 162
A163: 0.326 | B163: 8366.25 | C163: 163
A164: 0.328 | B164: 8497.37 | C164: 164
A165: 0.33 | B165: 8909.1 | C165: 165
A166: 0.332 | B166: 9007.4 | C166: 166
A167: 0.334 | B167: 9508.8 | C167: 167
A168: 0.336 | B168: 9770.3 | C168: 168
A169: 0.338 | B169: 9802.15 | C169: 169
A170: 0.34 | B170: 10353.65 | C170: 170
A171: 0.342 | B171: 10404.6 | C171: 171
A172: 0.344 | B172: 10804.68 | C172: 172
A173: 0.346 | B173: 10841.26 | C173: 173
A174: 0.348 | B174: 10849.19 | C174: 174
A175: 0.35 | B175: 10910.52 | C175: 175
A176: 0.352 | B176: 11005.82 | C176: 176
A177: 0.354 | B177: 11379.9 | C177: 177
A178: 0.356 | B178: 11563.5 | C178: 178
A179: 0.358 | B179: 12322.29 | C179: 179
A180: 0.36 | B180: 13072.27 | C180: 180
A181: 0.362 | B181: 13361.75 | C181: 181
A182: 0.364 | B182: 13630.8 | C182: 182
A183: 0.366 | B183: 13854.9 | C183: 183
A184: 0.368 | B184: 14171.63 | C184: 184
A185: 0.37 | B185: 14228.3 | C185: 185
A186: 0.372 | B186: 14524.2 | C186: 186
A187: 0.374 | B187: 14541.8 | C187: 187
A188: 0.376 | B188: 14558.07 | C188: 188
A189: 0.378 | B189: 14668.54 | C189: 189
A190: 0.38 | B190: 15598.3 | C190: 190
A191: 0.382 | B191: 15694.39 | C191: 191
A192: 0.384 | B192: 15884.81 | C192: 192
A193: 0.386 | B193: 15922.02 | C193: 193
A194: =C194/500 -> 0.388 | B194: 15955.02 | C194: 194
A195: 0.39 | B195: 16046.1 | C195: 195
A196: 0.392 | B196: 16081.05 | C196: 196
A197: 0.394 | B197: 16571.1 | C197: 197
A198: 0.396 | B198: 16763.47 | C198: 198
A199: 0.398 | B199: 16981.75 | C199: 199
A200: 0.4 | B200: 17620.3 | C200: 200
... 300 more rows

Sheet ganancia2
A1: =C1/500 -> 0.002 | B1: -14953.125 | C1: 1
A2: =C2/500 -> 0.004 | B2: -12849.3 | C2: 2
A3: 0.006 | B3: -12101.79 | C3: 3
A4: 0.008 | B4: -11701.225 | C4: 4
A5: 0.01 | B5: -11544.325 | C5: 5
A6: 0.012 | B6: -11330.4 | C6: 6
A7: 0.014 | B7: -11188 | C7: 7
A8: 0.016 | B8: -11177.5 | C8: 8
A9: 0.018 | B9: -11135.925 | C9: 9
A10: 0.02 | B10: -11079.4 | C10: 10
A11: 0.022 | B11: -11072.5 | C11: 11
A12: 0.024 | B12: -11001.49 | C12: 12
A13: 0.026 | B13: -10961.495 | C13: 13
A14: 0.028 | B14: -10881.75 | C14: 14
A15: 0.03 | B15: -10814.235 | C15: 15
A16: 0.032 | B16: -10790 | C16: 16
A17: 0.034 | B17: -10777.865 | C17: 17
A18: 0.036 | B18: -10760.25 | C18: 18
A19: 0.038 | B19: -10738.645 | C19: 19
A20: 0.04 | B20: -10715.8 | C20: 20
A21: 0.042 | B21: -10680.2 | C21: 21
A22: 0.044 | B22: -10675.5 | C22: 22
A23: 0.046 | B23: -10641.25 | C23: 23
A24: 0.048 | B24: -10614.01 | C24: 24 | E24: Percentil | F24: Valor | H24: La ganancia media es de | J24: =F25 -> 14886.42 | K24: dólares
A25: 0.05 | B25: -10605 | C25: 25 | E25: 0.5 | F25: =VLOOKUP(E25,$A$1:$B$500,2,TRUE) -> 14886.42 | H25: Con un 95% de confianza la ganancia será mayor de | L25: =F26 -> -10605 | M25: dólares
A26: 0.052 | B26: -10593.8 | C26: 26 | E26: 0.05 | F26: =VLOOKUP(E26,$A$1:$B$500,2,TRUE) -> -10605 | H26: Con un 95% de confianza la ganancia será menos de | L26: =F27 -> 61254.75 | M26: dólares
A27: 0.054 | B27: -10564.24 | C27: 27 | E27: 0.95 | F27: =VLOOKUP(E27,$A$1:$B$500,2,TRUE) -> 61254.75 | H27: La probabilidad de ganar | J27: =datos!$S$5 -> 100000 | K27: es del | L27: =1-OFFSET($A$1,VLOOKUP($J$27,$B$1:$C$500,2,TRUE),0) -> 0.002
A28: 0.056 | B28: -10561.225 | C28: 28 | H28: La probabilidad de ganar | J28: =datos!$S$5/2 -> 50000 | K28: es del | L28: =1-OFFSET($A$1,VLOOKUP($J$28,$B$1:$C$500,2,TRUE),0) -> 0.098
A29: 0.058 | B29: -10519.4 | C29: 29 | H29: La probabilidad de terminar el año en pérdidas es del | L29: =OFFSET($A$1,VLOOKUP(0,$B$1:$C$500,2,TRUE),0) -> 0.222
A30: 0.06 | B30: -10504.23 | C30: 30
A31: 0.062 | B31: -10497.625 | C31: 31
A32: 0.064 | B32: -10470.205 | C32: 32
A33: 0.066 | B33: -10467.6 | C33: 33
A34: 0.068 | B34: -10460.2 | C34: 34
A35: 0.07 | B35: -10454.275 | C35: 35
A36: 0.072 | B36: -10396.25 | C36: 36
A37: 0.074 | B37: -10379.505 | C37: 37
A38: 0.076 | B38: -10367.05 | C38: 38
A39: 0.078 | B39: -10365.4 | C39: 39
A40: 0.08 | B40: -10355.575 | C40: 40
A41: 0.082 | B41: -10348.125 | C41: 41
A42: 0.084 | B42: -10343.28 | C42: 42
A43: 0.086 | B43: -10322.6 | C43: 43
A44: 0.088 | B44: -10313.875 | C44: 44
A45: 0.09 | B45: -10311.075 | C45: 45
A46: 0.092 | B46: -10297.5 | C46: 46
A47: 0.094 | B47: -10278 | C47: 47
A48: 0.096 | B48: -10264.5 | C48: 48
A49: 0.098 | B49: -10256.15 | C49: 49
A50: 0.1 | B50: -10248.255 | C50: 50
A51: 0.102 | B51: -10214.95 | C51: 51
A52: 0.104 | B52: -10210.075 | C52: 52
A53: 0.106 | B53: -10196.02 | C53: 53
A54: 0.108 | B54: -10191.35 | C54: 54
A55: 0.11 | B55: -10164.87 | C55: 55
A56: 0.112 | B56: -10156.25 | C56: 56
A57: 0.114 | B57: -10118.75 | C57: 57
A58: 0.116 | B58: -10111.95 | C58: 58
A59: 0.118 | B59: -10087.85 | C59: 59
A60: 0.12 | B60: -10074.375 | C60: 60
A61: 0.122 | B61: -10062.525 | C61: 61
A62: 0.124 | B62: -10025.75 | C62: 62
A63: 0.126 | B63: -10016.25 | C63: 63
A64: 0.128 | B64: -10006.35 | C64: 64
A65: 0.13 | B65: -8234.375 | C65: 65
A66: =C66/500 -> 0.132 | B66: -8139.615 | C66: 66
A67: 0.134 | B67: -6767.03 | C67: 67
A68: 0.136 | B68: -6451.59 | C68: 68
A69: 0.138 | B69: -6394.64 | C69: 69
A70: 0.14 | B70: -6025.05 | C70: 70
A71: 0.142 | B71: -5762.15 | C71: 71
A72: 0.144 | B72: -5687.56 | C72: 72
A73: 0.146 | B73: -5529.8 | C73: 73
A74: 0.148 | B74: -5187.435 | C74: 74
A75: 0.15 | B75: -5051.19 | C75: 75
A76: 0.152 | B76: -4821.75 | C76: 76
A77: 0.154 | B77: -4701.875 | C77: 77
A78: 0.156 | B78: -4693.8 | C78: 78
A79: 0.158 | B79: -4505.78 | C79: 79
A80: 0.16 | B80: -4411.89 | C80: 80
A81: 0.162 | B81: -4069.065 | C81: 81
A82: 0.164 | B82: -3986.8 | C82: 82
A83: 0.166 | B83: -3964.675 | C83: 83
A84: 0.168 | B84: -3868.55 | C84: 84
A85: 0.17 | B85: -3687.47 | C85: 85
A86: 0.172 | B86: -3272.55 | C86: 86
A87: 0.174 | B87: -3046.135 | C87: 87
A88: 0.176 | B88: -2983.075 | C88: 88
A89: 0.178 | B89: -2715.89 | C89: 89
A90: 0.18 | B90: -2678.3 | C90: 90
A91: 0.182 | B91: -2666.01 | C91: 91
A92: 0.184 | B92: -2571.73 | C92: 92
A93: 0.186 | B93: -2460.525 | C93: 93
A94: 0.188 | B94: -2448.225 | C94: 94
A95: 0.19 | B95: -2317.355 | C95: 95
A96: 0.192 | B96: -2087.1 | C96: 96
A97: 0.194 | B97: -2009.86 | C97: 97
A98: 0.196 | B98: -1741.85 | C98: 98
A99: 0.198 | B99: -1707.18 | C99: 99
A100: 0.2 | B100: -1491.25 | C100: 100
A101: 0.202 | B101: -1443.59 | C101: 101
A102: 0.204 | B102: -1390 | C102: 102
A103: 0.206 | B103: -1038.275 | C103: 103
A104: 0.208 | B104: -1035.7 | C104: 104
A105: 0.21 | B105: -884.75 | C105: 105
A106: 0.212 | B106: -603.95 | C106: 106
A107: 0.214 | B107: -238.245 | C107: 107
A108: 0.216 | B108: -185.75 | C108: 108
A109: 0.218 | B109: -133.83 | C109: 109
A110: 0.22 | B110: -22.85 | C110: 110
A111: 0.222 | B111: 57.38 | C111: 111
A112: 0.224 | B112: 62 | C112: 112
A113: 0.226 | B113: 112.85 | C113: 113
A114: 0.228 | B114: 138.525 | C114: 114
A115: 0.23 | B115: 147.4 | C115: 115
A116: 0.232 | B116: 264.64 | C116: 116
A117: 0.234 | B117: 274.37 | C117: 117
A118: 0.236 | B118: 299.825 | C118: 118
A119: 0.238 | B119: 508.2 | C119: 119
A120: 0.24 | B120: 597.25 | C120: 120
A121: 0.242 | B121: 730.02 | C121: 121
A122: 0.244 | B122: 968.75 | C122: 122
A123: 0.246 | B123: 969.55 | C123: 123
A124: 0.248 | B124: 1158.645 | C124: 124
A125: 0.25 | B125: 1401.3 | C125: 125
A126: 0.252 | B126: 1700.43 | C126: 126
A127: 0.254 | B127: 2128.75 | C127: 127
A128: 0.256 | B128: 2136.3 | C128: 128
A129: 0.258 | B129: 2265.2 | C129: 129
A130: =C130/500 -> 0.26 | B130: 2332.06 | C130: 130
A131: 0.262 | B131: 2400.45 | C131: 131
A132: 0.264 | B132: 2440.65 | C132: 132
A133: 0.266 | B133: 2554.85 | C133: 133
A134: 0.268 | B134: 2590 | C134: 134
A135: 0.27 | B135: 2719.39 | C135: 135
A136: 0.272 | B136: 2841.1 | C136: 136
A137: 0.274 | B137: 2948.12 | C137: 137
A138: 0.276 | B138: 2999.915 | C138: 138
A139: 0.278 | B139: 3079.375 | C139: 139
A140: 0.28 | B140: 3225.35 | C140: 140
A141: 0.282 | B141: 3342.4 | C141: 141
A142: 0.284 | B142: 3545.65 | C142: 142
A143: 0.286 | B143: 3623.05 | C143: 143
A144: 0.288 | B144: 3709.875 | C144: 144
A145: 0.29 | B145: 4013.2 | C145: 145
A146: 0.292 | B146: 4030.245 | C146: 146
A147: 0.294 | B147: 4129.54 | C147: 147
A148: 0.296 | B148: 4247.09 | C148: 148
A149: 0.298 | B149: 4270.355 | C149: 149
A150: 0.3 | B150: 4432.62 | C150: 150
A151: 0.302 | B151: 4458.825 | C151: 151
A152: 0.304 | B152: 4936.41 | C152: 152
A153: 0.306 | B153: 4942.04 | C153: 153
A154: 0.308 | B154: 4988.05 | C154: 154
A155: 0.31 | B155: 4991.06 | C155: 155
A156: 0.312 | B156: 5011.19 | C156: 156
A157: 0.314 | B157: 5026.875 | C157: 157
A158: 0.316 | B158: 5130.44 | C158: 158
A159: 0.318 | B159: 5181.08 | C159: 159
A160: 0.32 | B160: 5233.72 | C160: 160
A161: 0.322 | B161: 5286.05 | C161: 161
A162: 0.324 | B162: 5539.95 | C162: 162
A163: 0.326 | B163: 5559.585 | C163: 163
A164: 0.328 | B164: 5596.775 | C164: 164
A165: 0.33 | B165: 5793.24 | C165: 165
A166: 0.332 | B166: 6089.17 | C166: 166
A167: 0.334 | B167: 6285.385 | C167: 167
A168: 0.336 | B168: 6796.3 | C168: 168
A169: 0.338 | B169: 6967.325 | C169: 169
A170: 0.34 | B170: 7213.8 | C170: 170
A171: 0.342 | B171: 7383.07 | C171: 171
A172: 0.344 | B172: 7419.7 | C172: 172
A173: 0.346 | B173: 7447.74 | C173: 173
A174: 0.348 | B174: 7461.68 | C174: 174
A175: 0.35 | B175: 7607.15 | C175: 175
A176: 0.352 | B176: 7714.65 | C176: 176
A177: 0.354 | B177: 7717 | C177: 177
A178: 0.356 | B178: 7724.75 | C178: 178
A179: 0.358 | B179: 7841.35 | C179: 179
A180: 0.36 | B180: 7959.45 | C180: 180
A181: 0.362 | B181: 8068.9 | C181: 181
A182: 0.364 | B182: 8282.065 | C182: 182
A183: 0.366 | B183: 8294.445 | C183: 183
A184: 0.368 | B184: 8342.49 | C184: 184
A185: 0.37 | B185: 8492.46 | C185: 185
A186: 0.372 | B186: 8639.3 | C186: 186
A187: 0.374 | B187: 8675.98 | C187: 187
A188: 0.376 | B188: 8710.95 | C188: 188
A189: 0.378 | B189: 8768.75 | C189: 189
A190: 0.38 | B190: 8791.4 | C190: 190
A191: 0.382 | B191: 8816.3 | C191: 191
A192: 0.384 | B192: 8864.3 | C192: 192
A193: 0.386 | B193: 8953.375 | C193: 193
A194: =C194/500 -> 0.388 | B194: 9058.55 | C194: 194
A195: 0.39 | B195: 9201.345 | C195: 195
A196: 0.392 | B196: 9276.475 | C196: 196
A197: 0.394 | B197: 9392.55 | C197: 197
A198: 0.396 | B198: 9477.71 | C198: 198
A199: 0.398 | B199: 9549.76 | C199: 199
A200: 0.4 | B200: 9752.91 | C200: 200
... 300 more rows

Sheet drawdown
A1: =C1/500 -> 0.002 | B1: 4400 | C1: 1
A2: =C2/500 -> 0.004 | B2: 5280 | C2: 2
A3: 0.006 | B3: 5465 | C3: 3
A4: 0.008 | B4: 5467.5 | C4: 4
A5: 0.01 | B5: 5705.1 | C5: 5
A6: 0.012 | B6: 5897.5 | C6: 6
A7: 0.014 | B7: 5950 | C7: 7
A8: 0.016 | B8: 6212.5 | C8: 8
A9: 0.018 | B9: 6347.5 | C9: 9
A10: 0.02 | B10: 6390 | C10: 10
A11: 0.022 | B11: 6462.5 | C11: 11
A12: 0.024 | B12: 6576.3 | C12: 12
A13: 0.026 | B13: 6643.8 | C13: 13
A14: 0.028 | B14: 6655 | C14: 14
A15: 0.03 | B15: 6815 | C15: 15
A16: 0.032 | B16: 6831.3 | C16: 16
A17: 0.034 | B17: 6876.3 | C17: 17
A18: 0.036 | B18: 6892.5 | C18: 18
A19: 0.038 | B19: 6906.2 | C19: 19
A20: 0.04 | B20: 7101.2 | C20: 20
A21: 0.042 | B21: 7107.5 | C21: 21
A22: 0.044 | B22: 7185 | C22: 22
A23: 0.046 | B23: 7190 | C23: 23
A24: 0.048 | B24: 7215 | C24: 24 | E24: Percentil | F24: Valor | H24: El drawdown medio es de | J24: =F25 -> 12074.9 | K24: dólares
A25: 0.05 | B25: 7237.5 | C25: 25 | E25: 0.5 | F25: =VLOOKUP(E25,$A$1:$B$500,2,TRUE) -> 12074.9 | H25: Con un 95% de confianza el drawdown será mayor de | L25: =F26 -> 7237.5 | M25: dólares
A26: 0.052 | B26: 7242.5 | C26: 26 | E26: 0.05 | F26: =VLOOKUP(E26,$A$1:$B$500,2,TRUE) -> 7237.5 | H26: Con un 95% de confianza el drawdown será menos de | L26: =F27 -> 23142.9 | M26: dólares
A27: 0.054 | B27: 7351.3 | C27: 27 | E27: 0.95 | F27: =VLOOKUP(E27,$A$1:$B$500,2,TRUE) -> 23142.9 | H27: La probabilidad de un drawdown de 30.000 dólares o más es del | M27: =1-OFFSET(A1,VLOOKUP(30000,$B$1:$C$500,2,TRUE),0) -> 0
A28: 0.056 | B28: 7362.5 | C28: 28 | H28: La probabilidad de un drawdown de 40.000 dólares o más es del | M28: =1-OFFSET(A1,VLOOKUP(40000,$B$1:$C$500,2,TRUE),0) -> 1
A29: 0.058 | B29: 7456.62 | C29: 29
A30: 0.06 | B30: 7457.5 | C30: 30
A31: 0.062 | B31: 7582.5 | C31: 31
A32: 0.064 | B32: 7597.5 | C32: 32
A33: 0.066 | B33: 7599.9 | C33: 33
A34: 0.068 | B34: 7613.8 | C34: 34
A35: 0.07 | B35: 7614 | C35: 35
A36: 0.072 | B36: 7643 | C36: 36
A37: 0.074 | B37: 7712.5 | C37: 37
A38: 0.076 | B38: 7740 | C38: 38
A39: 0.078 | B39: 7815 | C39: 39
A40: 0.08 | B40: 7885 | C40: 40
A41: 0.082 | B41: 7900 | C41: 41
A42: 0.084 | B42: 7900 | C42: 42
A43: 0.086 | B43: 7972.5 | C43: 43
A44: 0.088 | B44: 8031.2 | C44: 44
A45: 0.09 | B45: 8056.2 | C45: 45
A46: 0.092 | B46: 8056.5 | C46: 46
A47: 0.094 | B47: 8074.9 | C47: 47
A48: 0.096 | B48: 8110 | C48: 48
A49: 0.098 | B49: 8153.8 | C49: 49
A50: 0.1 | B50: 8170 | C50: 50
A51: 0.102 | B51: 8202.5 | C51: 51
A52: 0.104 | B52: 8220 | C52: 52
A53: 0.106 | B53: 8273 | C53: 53
A54: 0.108 | B54: 8295 | C54: 54
A55: 0.11 | B55: 8312.5 | C55: 55
A56: 0.112 | B56: 8325 | C56: 56
A57: 0.114 | B57: 8366.3 | C57: 57
A58: 0.116 | B58: 8395 | C58: 58
A59: 0.118 | B59: 8396.15 | C59: 59
A60: 0.12 | B60: 8405 | C60: 60
A61: 0.122 | B61: 8415 | C61: 61
A62: 0.124 | B62: 8418.8 | C62: 62
A63: 0.126 | B63: 8440 | C63: 63
A64: 0.128 | B64: 8446.02 | C64: 64
A65: 0.13 | B65: 8449 | C65: 65
A66: =C66/500 -> 0.132 | B66: 8511.3 | C66: 66
A67: 0.134 | B67: 8530 | C67: 67
A68: 0.136 | B68: 8549.9 | C68: 68
A69: 0.138 | B69: 8550 | C69: 69
A70: 0.14 | B70: 8555 | C70: 70
A71: 0.142 | B71: 8575.48 | C71: 71
A72: 0.144 | B72: 8618.7 | C72: 72
A73: 0.146 | B73: 8631.98 | C73: 73
A74: 0.148 | B74: 8685 | C74: 74
A75: 0.15 | B75: 8731.12 | C75: 75
A76: 0.152 | B76: 8791.3 | C76: 76
A77: 0.154 | B77: 8820.1 | C77: 77
A78: 0.156 | B78: 8864.5 | C78: 78
A79: 0.158 | B79: 8972.5 | C79: 79
A80: 0.16 | B80: 8975 | C80: 80
A81: 0.162 | B81: 8982.5 | C81: 81
A82: 0.164 | B82: 9010 | C82: 82
A83: 0.166 | B83: 9027.5 | C83: 83
A84: 0.168 | B84: 9038.8 | C84: 84
A85: 0.17 | B85: 9059 | C85: 85
A86: 0.172 | B86: 9096.25 | C86: 86
A87: 0.174 | B87: 9128.7 | C87: 87
A88: 0.176 | B88: 9145 | C88: 88
A89: 0.178 | B89: 9151.3 | C89: 89
A90: 0.18 | B90: 9171 | C90: 90
A91: 0.182 | B91: 9183.8 | C91: 91
A92: 0.184 | B92: 9200 | C92: 92
A93: 0.186 | B93: 9208.8 | C93: 93
A94: 0.188 | B94: 9225.48 | C94: 94
A95: 0.19 | B95: 9240 | C95: 95
A96: 0.192 | B96: 9249.52 | C96: 96
A97: 0.194 | B97: 9255 | C97: 97
A98: 0.196 | B98: 9260 | C98: 98
A99: 0.198 | B99: 9261.3 | C99: 99
A100: 0.2 | B100: 9262.5 | C100: 100
A101: 0.202 | B101: 9282.25 | C101: 101
A102: 0.204 | B102: 9300 | C102: 102
A103: 0.206 | B103: 9341.3 | C103: 103
A104: 0.208 | B104: 9341.56 | C104: 104
A105: 0.21 | B105: 9362.5 | C105: 105
A106: 0.212 | B106: 9382.5 | C106: 106
A107: 0.214 | B107: 9420 | C107: 107
A108: 0.216 | B108: 9441.25 | C108: 108
A109: 0.218 | B109: 9451.3 | C109: 109
A110: 0.22 | B110: 9489.3 | C110: 110
A111: 0.222 | B111: 9495.2 | C111: 111
A112: 0.224 | B112: 9548.7 | C112: 112
A113: 0.226 | B113: 9600.7 | C113: 113
A114: 0.228 | B114: 9660 | C114: 114
A115: 0.23 | B115: 9720 | C115: 115
A116: 0.232 | B116: 9720 | C116: 116
A117: 0.234 | B117: 9728.6 | C117: 117
A118: 0.236 | B118: 9825 | C118: 118
A119: 0.238 | B119: 9836 | C119: 119
A120: 0.24 | B120: 9862.5 | C120: 120
A121: 0.242 | B121: 9864.95 | C121: 121
A122: 0.244 | B122: 9870 | C122: 122
A123: 0.246 | B123: 9871.25 | C123: 123
A124: 0.248 | B124: 9876.2 | C124: 124
A125: 0.25 | B125: 9910.68 | C125: 125
A126: 0.252 | B126: 9945 | C126: 126
A127: 0.254 | B127: 9965 | C127: 127
A128: 0.256 | B128: 10022.5 | C128: 128
A129: 0.258 | B129: 10025 | C129: 129
A130: =C130/500 -> 0.26 | B130: 10032.5 | C130: 130
A131: 0.262 | B131: 10049.5 | C131: 131
A132: 0.264 | B132: 10087.5 | C132: 132
A133: 0.266 | B133: 10092.5 | C133: 133
A134: 0.268 | B134: 10092.78 | C134: 134
A135: 0.27 | B135: 10127.5 | C135: 135
A136: 0.272 | B136: 10139.82 | C136: 136
A137: 0.274 | B137: 10154.3 | C137: 137
A138: 0.276 | B138: 10170.2 | C138: 138
A139: 0.278 | B139: 10179.5 | C139: 139
A140: 0.28 | B140: 10193.8 | C140: 140
A141: 0.282 | B141: 10205 | C141: 141
A142: 0.284 | B142: 10207.5 | C142: 142
A143: 0.286 | B143: 10226.5 | C143: 143
A144: 0.288 | B144: 10240 | C144: 144
A145: 0.29 | B145: 10241.5 | C145: 145
A146: 0.292 | B146: 10248.8 | C146: 146
A147: 0.294 | B147: 10260 | C147: 147
A148: 0.296 | B148: 10287.5 | C148: 148
A149: 0.298 | B149: 10358.25 | C149: 149
A150: 0.3 | B150: 10372.5 | C150: 150
A151: 0.302 | B151: 10394.48 | C151: 151
A152: 0.304 | B152: 10412.8 | C152: 152
A153: 0.306 | B153: 10458 | C153: 153
A154: 0.308 | B154: 10458.8 | C154: 154
A155: 0.31 | B155: 10478.2 | C155: 155
A156: 0.312 | B156: 10485.48 | C156: 156
A157: 0.314 | B157: 10490 | C157: 157
A158: 0.316 | B158: 10497.73 | C158: 158
A159: 0.318 | B159: 10576.3 | C159: 159
A160: 0.32 | B160: 10620 | C160: 160
A161: 0.322 | B161: 10637.5 | C161: 161
A162: 0.324 | B162: 10637.5 | C162: 162
A163: 0.326 | B163: 10672.5 | C163: 163
A164: 0.328 | B164: 10680 | C164: 164
A165: 0.33 | B165: 10689.5 | C165: 165
A166: 0.332 | B166: 10719.75 | C166: 166
A167: 0.334 | B167: 10746.02 | C167: 167
A168: 0.336 | B168: 10748.27 | C168: 168
A169: 0.338 | B169: 10762.5 | C169: 169
A170: 0.34 | B170: 10797.5 | C170: 170
A171: 0.342 | B171: 10812.4 | C171: 171
A172: 0.344 | B172: 10813.72 | C172: 172
A173: 0.346 | B173: 10838.8 | C173: 173
A174: 0.348 | B174: 10840 | C174: 174
A175: 0.35 | B175: 10840 | C175: 175
A176: 0.352 | B176: 10884.3 | C176: 176
A177: 0.354 | B177: 10912.5 | C177: 177
A178: 0.356 | B178: 10915 | C178: 178
A179: 0.358 | B179: 10920 | C179: 179
A180: 0.36 | B180: 10935 | C180: 180
A181: 0.362 | B181: 10960 | C181: 181
A182: 0.364 | B182: 10985.5 | C182: 182
A183: 0.366 | B183: 10994.48 | C183: 183
A184: 0.368 | B184: 10995 | C184: 184
A185: 0.37 | B185: 11000.5 | C185: 185
A186: 0.372 | B186: 11015 | C186: 186
A187: 0.374 | B187: 11018.8 | C187: 187
A188: 0.376 | B188: 11022.5 | C188: 188
A189: 0.378 | B189: 11032.5 | C189: 189
A190: 0.38 | B190: 11036.5 | C190: 190
A191: 0.382 | B191: 11057.5 | C191: 191
A192: 0.384 | B192: 11137.48 | C192: 192
A193: 0.386 | B193: 11145 | C193: 193
A194: =C194/500 -> 0.388 | B194: 11155 | C194: 194
A195: 0.39 | B195: 11167.5 | C195: 195
A196: 0.392 | B196: 11177.5 | C196: 196
A197: 0.394 | B197: 11203.75 | C197: 197
A198: 0.396 | B198: 11205.3 | C198: 198
A199: 0.398 | B199: 11259.9 | C199: 199
A200: 0.4 | B200: 11263.5 | C200: 200
... 300 more rows

Sheet drawdown2
A1: =C1/500 -> 0.002 | B1: 5860 | C1: 1
A2: =C2/500 -> 0.004 | B2: 5966.85 | C2: 2
A3: 0.006 | B3: 5981.25 | C3: 3
A4: 0.008 | B4: 6058.75 | C4: 4
A5: 0.01 | B5: 6198.49 | C5: 5
A6: 0.012 | B6: 6625 | C6: 6
A7: 0.014 | B7: 6705.25 | C7: 7
A8: 0.016 | B8: 6709.9 | C8: 8
A9: 0.018 | B9: 6759.95 | C9: 9
A10: 0.02 | B10: 6765 | C10: 10
A11: 0.022 | B11: 6805.625 | C11: 11
A12: 0.024 | B12: 7105.025 | C12: 12
A13: 0.026 | B13: 7181.25 | C13: 13
A14: 0.028 | B14: 7190.625 | C14: 14
A15: 0.03 | B15: 7365 | C15: 15
A16: 0.032 | B16: 7398.75 | C16: 16
A17: 0.034 | B17: 7495 | C17: 17
A18: 0.036 | B18: 7495.6 | C18: 18
A19: 0.038 | B19: 7513.75 | C19: 19
A20: 0.04 | B20: 7565.54 | C20: 20
A21: 0.042 | B21: 7575.335 | C21: 21
A22: 0.044 | B22: 7611.25 | C22: 22
A23: 0.046 | B23: 7620.65 | C23: 23
A24: 0.048 | B24: 7698.15 | C24: 24 | E24: Percentil | F24: Valor | H24: El drawdown medio es de | J24: =F25 -> 15119.48 | K24: dólares
A25: 0.05 | B25: 7698.75 | C25: 25 | E25: 0.5 | F25: =VLOOKUP(E25,$A$1:$B$500,2,TRUE) -> 15119.48 | H25: Con un 95% de confianza el drawdown será mayor de | L25: =F26 -> 7698.75 | M25: dólares
A26: 0.052 | B26: 7807 | C26: 26 | E26: 0.05 | F26: =VLOOKUP(E26,$A$1:$B$500,2,TRUE) -> 7698.75 | H26: Con un 95% de confianza el drawdown será menos de | L26: =F27 -> 30891.75 | M26: dólares
A27: 0.054 | B27: 7816.5 | C27: 27 | E27: 0.95 | F27: =VLOOKUP(E27,$A$1:$B$500,2,TRUE) -> 30891.75 | H27: La probabilidad de un drawdown de 30.000 dólares o más es del | M27: =1-OFFSET(A1,VLOOKUP(30000,$B$1:$C$500,2,TRUE),0) -> 0.052
A28: 0.056 | B28: 7906.19 | C28: 28 | H28: La probabilidad de un drawdown de 40.000 dólares o más es del | M28: =1-OFFSET(A1,VLOOKUP(40000,$B$1:$C$500,2,TRUE),0) -> 0.022
A29: 0.058 | B29: 7915 | C29: 29
A30: 0.06 | B30: 7950 | C30: 30
A31: 0.062 | B31: 8040.49 | C31: 31
A32: 0.064 | B32: 8097.75 | C32: 32
A33: 0.066 | B33: 8189.2 | C33: 33
A34: 0.068 | B34: 8210.65 | C34: 34
A35: 0.07 | B35: 8313.75 | C35: 35
A36: 0.072 | B36: 8327 | C36: 36
A37: 0.074 | B37: 8329.975 | C37: 37
A38: 0.076 | B38: 8350.9 | C38: 38
A39: 0.078 | B39: 8413.75 | C39: 39
A40: 0.08 | B40: 8494.315 | C40: 40
A41: 0.082 | B41: 8563 | C41: 41
A42: 0.084 | B42: 8738.645 | C42: 42
A43: 0.086 | B43: 8869.95 | C43: 43
A44: 0.088 | B44: 8903.75 | C44: 44
A45: 0.09 | B45: 8938.75 | C45: 45
A46: 0.092 | B46: 8957.5 | C46: 46
A47: 0.094 | B47: 8964.3 | C47: 47
A48: 0.096 | B48: 8976.49 | C48: 48
A49: 0.098 | B49: 9097.09 | C49: 49
A50: 0.1 | B50: 9204.35 | C50: 50
A51: 0.102 | B51: 9219.5 | C51: 51
A52: 0.104 | B52: 9230 | C52: 52
A53: 0.106 | B53: 9241.25 | C53: 53
A54: 0.108 | B54: 9371.65 | C54: 54
A55: 0.11 | B55: 9372 | C55: 55
A56: 0.112 | B56: 9458.115 | C56: 56
A57: 0.114 | B57: 9460 | C57: 57
A58: 0.116 | B58: 9477.9 | C58: 58
A59: 0.118 | B59: 9550.05 | C59: 59
A60: 0.12 | B60: 9591.05 | C60: 60
A61: 0.122 | B61: 9629.5 | C61: 61
A62: 0.124 | B62: 9641.75 | C62: 62
A63: 0.126 | B63: 9695.75 | C63: 63
A64: 0.128 | B64: 9697.6 | C64: 64
A65: 0.13 | B65: 9709.05 | C65: 65
A66: =C66/500 -> 0.132 | B66: 9795.75 | C66: 66
A67: 0.134 | B67: 9805 | C67: 67
A68: 0.136 | B68: 9808.75 | C68: 68
A69: 0.138 | B69: 9872.6 | C69: 69
A70: 0.14 | B70: 9923.75 | C70: 70
A71: 0.142 | B71: 9935 | C71: 71
A72: 0.144 | B72: 9947.5 | C72: 72
A73: 0.146 | B73: 9957.5 | C73: 73
A74: 0.148 | B74: 10036.25 | C74: 74
A75: 0.15 | B75: 10047.96 | C75: 75
A76: 0.152 | B76: 10070 | C76: 76
A77: 0.154 | B77: 10108.75 | C77: 77
A78: 0.156 | B78: 10128.75 | C78: 78
A79: 0.158 | B79: 10143.75 | C79: 79
A80: 0.16 | B80: 10149.4 | C80: 80
A81: 0.162 | B81: 10156.25 | C81: 81
A82: 0.164 | B82: 10192.5 | C82: 82
A83: 0.166 | B83: 10212.505 | C83: 83
A84: 0.168 | B84: 10243.125 | C84: 84
A85: 0.17 | B85: 10251.9 | C85: 85
A86: 0.172 | B86: 10288.25 | C86: 86
A87: 0.174 | B87: 10291.85 | C87: 87
A88: 0.176 | B88: 10297.5 | C88: 88
A89: 0.178 | B89: 10313.875 | C89: 89
A90: 0.18 | B90: 10346.25 | C90: 90
A91: 0.182 | B91: 10346.9 | C91: 91
A92: 0.184 | B92: 10355.575 | C92: 92
A93: 0.186 | B93: 10388.125 | C93: 93
A94: 0.188 | B94: 10389.335 | C94: 94
A95: 0.19 | B95: 10470.205 | C95: 95
A96: 0.192 | B96: 10471.25 | C96: 96
A97: 0.194 | B97: 10514.5 | C97: 97
A98: 0.196 | B98: 10519.4 | C98: 98
A99: 0.198 | B99: 10523.125 | C99: 99
A100: 0.2 | B100: 10534.615 | C100: 100
A101: 0.202 | B101: 10539.6 | C101: 101
A102: 0.204 | B102: 10564.24 | C102: 102
A103: 0.206 | B103: 10605.41 | C103: 103
A104: 0.208 | B104: 10683.225 | C104: 104
A105: 0.21 | B105: 10712.85 | C105: 105
A106: 0.212 | B106: 10746.42 | C106: 106
A107: 0.214 | B107: 10763.15 | C107: 107
A108: 0.216 | B108: 10777.55 | C108: 108
A109: 0.218 | B109: 10782.5 | C109: 109
A110: 0.22 | B110: 10814.235 | C110: 110
A111: 0.222 | B111: 10884.51 | C111: 111
A112: 0.224 | B112: 10938 | C112: 112
A113: 0.226 | B113: 10966.8 | C113: 113
A114: 0.228 | B114: 11061.95 | C114: 114
A115: 0.23 | B115: 11072.5 | C115: 115
A116: 0.232 | B116: 11102.5 | C116: 116
A117: 0.234 | B117: 11127.15 | C117: 117
A118: 0.236 | B118: 11141.87 | C118: 118
A119: 0.238 | B119: 11197.695 | C119: 119
A120: 0.24 | B120: 11215.15 | C120: 120
A121: 0.242 | B121: 11237.05 | C121: 121
A122: 0.244 | B122: 11238.2 | C122: 122
A123: 0.246 | B123: 11242.45 | C123: 123
A124: 0.248 | B124: 11246.85 | C124: 124
A125: 0.25 | B125: 11247.55 | C125: 125
A126: 0.252 | B126: 11258.15 | C126: 126
A127: 0.254 | B127: 11260 | C127: 127
A128: 0.256 | B128: 11260.075 | C128: 128
A129: 0.258 | B129: 11260.6 | C129: 129
A130: =C130/500 -> 0.26 | B130: 11330.4 | C130: 130
A131: 0.262 | B131: 11339.88 | C131: 131
A132: 0.264 | B132: 11380 | C132: 132
A133: 0.266 | B133: 11380.65 | C133: 133
A134: 0.268 | B134: 11420.85 | C134: 134
A135: 0.27 | B135: 11447 | C135: 135
A136: 0.272 | B136: 11458.75 | C136: 136
A137: 0.274 | B137: 11471.25 | C137: 137
A138: 0.276 | B138: 11511.25 | C138: 138
A139: 0.278 | B139: 11514.35 | C139: 139
A140: 0.28 | B140: 11522.1 | C140: 140
A141: 0.282 | B141: 11621.95 | C141: 141
A142: 0.284 | B142: 11622.085 | C142: 142
A143: 0.286 | B143: 11641.35 | C143: 143
A144: 0.288 | B144: 11652.5 | C144: 144
A145: 0.29 | B145: 11655 | C145: 145
A146: 0.292 | B146: 11703.1 | C146: 146
A147: 0.294 | B147: 11840.85 | C147: 147
A148: 0.296 | B148: 11892.995 | C148: 148
A149: 0.298 | B149: 11924.54 | C149: 149
A150: 0.3 | B150: 11986.275 | C150: 150
A151: 0.302 | B151: 12041.9 | C151: 151
A152: 0.304 | B152: 12060.6 | C152: 152
A153: 0.306 | B153: 12095.65 | C153: 153
A154: 0.308 | B154: 12139.95 | C154: 154
A155: 0.31 | B155: 12142.6 | C155: 155
A156: 0.312 | B156: 12212.525 | C156: 156
A157: 0.314 | B157: 12245.325 | C157: 157
A158: 0.316 | B158: 12283.75 | C158: 158
A159: 0.318 | B159: 12343.775 | C159: 159
A160: 0.32 | B160: 12418 | C160: 160
A161: 0.322 | B161: 12428.725 | C161: 161
A162: 0.324 | B162: 12435.65 | C162: 162
A163: 0.326 | B163: 12491.47 | C163: 163
A164: 0.328 | B164: 12493.15 | C164: 164
A165: 0.33 | B165: 12508 | C165: 165
A166: 0.332 | B166: 12516.2 | C166: 166
A167: 0.334 | B167: 12523.75 | C167: 167
A168: 0.336 | B168: 12537.475 | C168: 168
A169: 0.338 | B169: 12551.2 | C169: 169
A170: 0.34 | B170: 12589.35 | C170: 170
A171: 0.342 | B171: 12632.35 | C171: 171
A172: 0.344 | B172: 12639.5 | C172: 172
A173: 0.346 | B173: 12659.5 | C173: 173
A174: 0.348 | B174: 12660 | C174: 174
A175: 0.35 | B175: 12671.2 | C175: 175
A176: 0.352 | B176: 12754.95 | C176: 176
A177: 0.354 | B177: 12770.725 | C177: 177
A178: 0.356 | B178: 12812.02 | C178: 178
A179: 0.358 | B179: 12830.35 | C179: 179
A180: 0.36 | B180: 12946.25 | C180: 180
A181: 0.362 | B181: 12964.855 | C181: 181
A182: 0.364 | B182: 13010.99 | C182: 182
A183: 0.366 | B183: 13012.44 | C183: 183
A184: 0.368 | B184: 13026.25 | C184: 184
A185: 0.37 | B185: 13079.45 | C185: 185
A186: 0.372 | B186: 13096.25 | C186: 186
A187: 0.374 | B187: 13114.95 | C187: 187
A188: 0.376 | B188: 13169.425 | C188: 188
A189: 0.378 | B189: 13178 | C189: 189
A190: 0.38 | B190: 13205 | C190: 190
A191: 0.382 | B191: 13226.25 | C191: 191
A192: 0.384 | B192: 13306.9 | C192: 192
A193: 0.386 | B193: 13323.505 | C193: 193
A194: =C194/500 -> 0.388 | B194: 13347.55 | C194: 194
A195: 0.39 | B195: 13479.35 | C195: 195
A196: 0.392 | B196: 13481.51 | C196: 196
A197: 0.394 | B197: 13498.725 | C197: 197
A198: 0.396 | B198: 13500 | C198: 198
A199: 0.398 | B199: 13517.5 | C199: 199
A200: 0.4 | B200: 13523.75 | C200: 200
... 300 more rows

Sheet ruina
A1: =C1/500 -> 0.002 | B1: 0 | C1: 1
A2: =C2/500 -> 0.004 | B2: 0 | C2: 2
A3: 0.006 | B3: 0 | C3: 3
A4: 0.008 | B4: 0 | C4: 4
A5: 0.01 | B5: 0 | C5: 5
A6: 0.012 | B6: 0 | C6: 6
A7: 0.014 | B7: 0 | C7: 7
A8: 0.016 | B8: 0 | C8: 8
A9: 0.018 | B9: 0 | C9: 9
A10: 0.02 | B10: 0 | C10: 10
A11: 0.022 | B11: 0 | C11: 11
A12: 0.024 | B12: 0 | C12: 12
A13: 0.026 | B13: 0 | C13: 13
A14: 0.028 | B14: 0 | C14: 14
A15: 0.03 | B15: 0 | C15: 15
A16: 0.032 | B16: 0 | C16: 16
A17: 0.034 | B17: 0 | C17: 17
A18: 0.036 | B18: 0 | C18: 18
A19: 0.038 | B19: 0 | C19: 19
A20: 0.04 | B20: 0 | C20: 20
A21: 0.042 | B21: 0 | C21: 21
A22: 0.044 | B22: 0 | C22: 22
A23: 0.046 | B23: 0 | C23: 23
A24: 0.048 | B24: 0 | C24: 24 | E24: Percentil | F24: Valor
A25: 0.05 | B25: 0 | C25: 25 | E25: 0.5 | F25: =VLOOKUP(E25,$A$1:$B$500,2,TRUE) -> 0 | H25: La probabilidad de RUINA es del | K25: =SUM($B$1:$B$500)/500 -> 0.244
A26: 0.052 | B26: 0 | C26: 26 | E26: 0.05 | F26: =VLOOKUP(E26,$A$1:$B$500,2,TRUE) -> 0
A27: 0.054 | B27: 0 | C27: 27 | E27: 0.95 | F27: =VLOOKUP(E27,$A$1:$B$500,2,TRUE) -> 1
A28: 0.056 | B28: 0 | C28: 28
A29: 0.058 | B29: 0 | C29: 29
A30: 0.06 | B30: 0 | C30: 30
A31: 0.062 | B31: 0 | C31: 31
A32: 0.064 | B32: 0 | C32: 32
A33: 0.066 | B33: 0 | C33: 33
A34: 0.068 | B34: 0 | C34: 34
A35: 0.07 | B35: 0 | C35: 35
A36: 0.072 | B36: 0 | C36: 36
A37: 0.074 | B37: 0 | C37: 37
A38: 0.076 | B38: 0 | C38: 38
A39: 0.078 | B39: 0 | C39: 39
A40: 0.08 | B40: 0 | C40: 40
A41: 0.082 | B41: 0 | C41: 41
A42: 0.084 | B42: 0 | C42: 42
A43: 0.086 | B43: 0 | C43: 43
A44: 0.088 | B44: 0 | C44: 44
A45: 0.09 | B45: 0 | C45: 45
A46: 0.092 | B46: 0 | C46: 46
A47: 0.094 | B47: 0 | C47: 47
A48: 0.096 | B48: 0 | C48: 48
A49: 0.098 | B49: 0 | C49: 49
A50: 0.1 | B50: 0 | C50: 50
A51: 0.102 | B51: 0 | C51: 51
A52: 0.104 | B52: 0 | C52: 52
A53: 0.106 | B53: 0 | C53: 53
A54: 0.108 | B54: 0 | C54: 54
A55: 0.11 | B55: 0 | C55: 55
A56: 0.112 | B56: 0 | C56: 56
A57: 0.114 | B57: 0 | C57: 57
A58: 0.116 | B58: 0 | C58: 58
A59: 0.118 | B59: 0 | C59: 59
A60: 0.12 | B60: 0 | C60: 60
A61: 0.122 | B61: 0 | C61: 61
A62: 0.124 | B62: 0 | C62: 62
A63: 0.126 | B63: 0 | C63: 63
A64: 0.128 | B64: 0 | C64: 64
A65: 0.13 | B65: 0 | C65: 65
A66: =C66/500 -> 0.132 | B66: 0 | C66: 66
A67: 0.134 | B67: 0 | C67: 67
A68: 0.136 | B68: 0 | C68: 68
A69: 0.138 | B69: 0 | C69: 69
A70: 0.14 | B70: 0 | C70: 70
A71: 0.142 | B71: 0 | C71: 71
A72: 0.144 | B72: 0 | C72: 72
A73: 0.146 | B73: 0 | C73: 73
A74: 0.148 | B74: 0 | C74: 74
A75: 0.15 | B75: 0 | C75: 75
A76: 0.152 | B76: 0 | C76: 76
A77: 0.154 | B77: 0 | C77: 77
A78: 0.156 | B78: 0 | C78: 78
A79: 0.158 | B79: 0 | C79: 79
A80: 0.16 | B80: 0 | C80: 80
A81: 0.162 | B81: 0 | C81: 81
A82: 0.164 | B82: 0 | C82: 82
A83: 0.166 | B83: 0 | C83: 83
A84: 0.168 | B84: 0 | C84: 84
A85: 0.17 | B85: 0 | C85: 85
A86: 0.172 | B86: 0 | C86: 86
A87: 0.174 | B87: 0 | C87: 87
A88: 0.176 | B88: 0 | C88: 88
A89: 0.178 | B89: 0 | C89: 89
A90: 0.18 | B90: 0 | C90: 90
A91: 0.182 | B91: 0 | C91: 91
A92: 0.184 | B92: 0 | C92: 92
A93: 0.186 | B93: 0 | C93: 93
A94: 0.188 | B94: 0 | C94: 94
A95: 0.19 | B95: 0 | C95: 95
A96: 0.192 | B96: 0 | C96: 96
A97: 0.194 | B97: 0 | C97: 97
A98: 0.196 | B98: 0 | C98: 98
A99: 0.198 | B99: 0 | C99: 99
A100: 0.2 | B100: 0 | C100: 100
A101: 0.202 | B101: 0 | C101: 101
A102: 0.204 | B102: 0 | C102: 102
A103: 0.206 | B103: 0 | C103: 103
A104: 0.208 | B104: 0 | C104: 104
A105: 0.21 | B105: 0 | C105: 105
A106: 0.212 | B106: 0 | C106: 106
A107: 0.214 | B107: 0 | C107: 107
A108: 0.216 | B108: 0 | C108: 108
A109: 0.218 | B109: 0 | C109: 109
A110: 0.22 | B110: 0 | C110: 110
A111: 0.222 | B111: 0 | C111: 111
A112: 0.224 | B112: 0 | C112: 112
A113: 0.226 | B113: 0 | C113: 113
A114: 0.228 | B114: 0 | C114: 114
A115: 0.23 | B115: 0 | C115: 115
A116: 0.232 | B116: 0 | C116: 116
A117: 0.234 | B117: 0 | C117: 117
A118: 0.236 | B118: 0 | C118: 118
A119: 0.238 | B119: 0 | C119: 119
A120: 0.24 | B120: 0 | C120: 120
A121: 0.242 | B121: 0 | C121: 121
A122: 0.244 | B122: 0 | C122: 122
A123: 0.246 | B123: 0 | C123: 123
A124: 0.248 | B124: 0 | C124: 124
A125: 0.25 | B125: 0 | C125: 125
A126: 0.252 | B126: 0 | C126: 126
A127: 0.254 | B127: 0 | C127: 127
A128: 0.256 | B128: 0 | C128: 128
A129: 0.258 | B129: 0 | C129: 129
A130: =C130/500 -> 0.26 | B130: 0 | C130: 130
A131: 0.262 | B131: 0 | C131: 131
A132: 0.264 | B132: 0 | C132: 132
A133: 0.266 | B133: 0 | C133: 133
A134: 0.268 | B134: 0 | C134: 134
A135: 0.27 | B135: 0 | C135: 135
A136: 0.272 | B136: 0 | C136: 136
A137: 0.274 | B137: 0 | C137: 137
A138: 0.276 | B138: 0 | C138: 138
A139: 0.278 | B139: 0 | C139: 139
A140: 0.28 | B140: 0 | C140: 140
A141: 0.282 | B141: 0 | C141: 141
A142: 0.284 | B142: 0 | C142: 142
A143: 0.286 | B143: 0 | C143: 143
A144: 0.288 | B144: 0 | C144: 144
A145: 0.29 | B145: 0 | C145: 145
A146: 0.292 | B146: 0 | C146: 146
A147: 0.294 | B147: 0 | C147: 147
A148: 0.296 | B148: 0 | C148: 148
A149: 0.298 | B149: 0 | C149: 149
A150: 0.3 | B150: 0 | C150: 150
A151: 0.302 | B151: 0 | C151: 151
A152: 0.304 | B152: 0 | C152: 152
A153: 0.306 | B153: 0 | C153: 153
A154: 0.308 | B154: 0 | C154: 154
A155: 0.31 | B155: 0 | C155: 155
A156: 0.312 | B156: 0 | C156: 156
A157: 0.314 | B157: 0 | C157: 157
A158: 0.316 | B158: 0 | C158: 158
A159: 0.318 | B159: 0 | C159: 159
A160: 0.32 | B160: 0 | C160: 160
A161: 0.322 | B161: 0 | C161: 161
A162: 0.324 | B162: 0 | C162: 162
A163: 0.326 | B163: 0 | C163: 163
A164: 0.328 | B164: 0 | C164: 164
A165: 0.33 | B165: 0 | C165: 165
A166: 0.332 | B166: 0 | C166: 166
A167: 0.334 | B167: 0 | C167: 167
A168: 0.336 | B168: 0 | C168: 168
A169: 0.338 | B169: 0 | C169: 169
A170: 0.34 | B170: 0 | C170: 170
A171: 0.342 | B171: 0 | C171: 171
A172: 0.344 | B172: 0 | C172: 172
A173: 0.346 | B173: 0 | C173: 173
A174: 0.348 | B174: 0 | C174: 174
A175: 0.35 | B175: 0 | C175: 175
A176: 0.352 | B176: 0 | C176: 176
A177: 0.354 | B177: 0 | C177: 177
A178: 0.356 | B178: 0 | C178: 178
A179: 0.358 | B179: 0 | C179: 179
A180: 0.36 | B180: 0 | C180: 180
A181: 0.362 | B181: 0 | C181: 181
A182: 0.364 | B182: 0 | C182: 182
A183: 0.366 | B183: 0 | C183: 183
A184: 0.368 | B184: 0 | C184: 184
A185: 0.37 | B185: 0 | C185: 185
A186: 0.372 | B186: 0 | C186: 186
A187: 0.374 | B187: 0 | C187: 187
A188: 0.376 | B188: 0 | C188: 188
A189: 0.378 | B189: 0 | C189: 189
A190: 0.38 | B190: 0 | C190: 190
A191: 0.382 | B191: 0 | C191: 191
A192: 0.384 | B192: 0 | C192: 192
A193: 0.386 | B193: 0 | C193: 193
A194: =C194/500 -> 0.388 | B194: 0 | C194: 194
A195: 0.39 | B195: 0 | C195: 195
A196: 0.392 | B196: 0 | C196: 196
A197: 0.394 | B197: 0 | C197: 197
A198: 0.396 | B198: 0 | C198: 198
A199: 0.398 | B199: 0 | C199: 199
A200: 0.4 | B200: 0 | C200: 200
... 300 more rows

Sheet ruina2
A1: =C1/500 -> 0.002 | B1: 0 | C1: 1
A2: =C2/500 -> 0.004 | B2: 0 | C2: 2
A3: 0.006 | B3: 0 | C3: 3
A4: 0.008 | B4: 0 | C4: 4
A5: 0.01 | B5: 0 | C5: 5
A6: 0.012 | B6: 0 | C6: 6
A7: 0.014 | B7: 0 | C7: 7
A8: 0.016 | B8: 0 | C8: 8
A9: 0.018 | B9: 0 | C9: 9
A10: 0.02 | B10: 0 | C10: 10
A11: 0.022 | B11: 0 | C11: 11
A12: 0.024 | B12: 0 | C12: 12
A13: 0.026 | B13: 0 | C13: 13
A14: 0.028 | B14: 0 | C14: 14
A15: 0.03 | B15: 0 | C15: 15
A16: 0.032 | B16: 0 | C16: 16
A17: 0.034 | B17: 0 | C17: 17
A18: 0.036 | B18: 0 | C18: 18
A19: 0.038 | B19: 0 | C19: 19
A20: 0.04 | B20: 0 | C20: 20
A21: 0.042 | B21: 0 | C21: 21
A22: 0.044 | B22: 0 | C22: 22
A23: 0.046 | B23: 0 | C23: 23
A24: 0.048 | B24: 0 | C24: 24 | E24: Percentil | F24: Valor
A25: 0.05 | B25: 0 | C25: 25 | E25: 0.5 | F25: =VLOOKUP(E25,$A$1:$B$500,2,TRUE) -> 0 | H25: La probabilidad de RUINA es del | K25: =SUM($B$1:$B$500)/500 -> 0.128
A26: 0.052 | B26: 0 | C26: 26 | E26: 0.05 | F26: =VLOOKUP(E26,$A$1:$B$500,2,TRUE) -> 0
A27: 0.054 | B27: 0 | C27: 27 | E27: 0.95 | F27: =VLOOKUP(E27,$A$1:$B$500,2,TRUE) -> 1
A28: 0.056 | B28: 0 | C28: 28
A29: 0.058 | B29: 0 | C29: 29
A30: 0.06 | B30: 0 | C30: 30
A31: 0.062 | B31: 0 | C31: 31
A32: 0.064 | B32: 0 | C32: 32
A33: 0.066 | B33: 0 | C33: 33
A34: 0.068 | B34: 0 | C34: 34
A35: 0.07 | B35: 0 | C35: 35
A36: 0.072 | B36: 0 | C36: 36
A37: 0.074 | B37: 0 | C37: 37
A38: 0.076 | B38: 0 | C38: 38
A39: 0.078 | B39: 0 | C39: 39
A40: 0.08 | B40: 0 | C40: 40
A41: 0.082 | B41: 0 | C41: 41
A42: 0.084 | B42: 0 | C42: 42
A43: 0.086 | B43: 0 | C43: 43
A44: 0.088 | B44: 0 | C44: 44
A45: 0.09 | B45: 0 | C45: 45
A46: 0.092 | B46: 0 | C46: 46
A47: 0.094 | B47: 0 | C47: 47
A48: 0.096 | B48: 0 | C48: 48
A49: 0.098 | B49: 0 | C49: 49
A50: 0.1 | B50: 0 | C50: 50
A51: 0.102 | B51: 0 | C51: 51
A52: 0.104 | B52: 0 | C52: 52
A53: 0.106 | B53: 0 | C53: 53
A54: 0.108 | B54: 0 | C54: 54
A55: 0.11 | B55: 0 | C55: 55
A56: 0.112 | B56: 0 | C56: 56
A57: 0.114 | B57: 0 | C57: 57
A58: 0.116 | B58: 0 | C58: 58
A59: 0.118 | B59: 0 | C59: 59
A60: 0.12 | B60: 0 | C60: 60
A61: 0.122 | B61: 0 | C61: 61
A62: 0.124 | B62: 0 | C62: 62
A63: 0.126 | B63: 0 | C63: 63
A64: 0.128 | B64: 0 | C64: 64
A65: 0.13 | B65: 0 | C65: 65
A66: =C66/500 -> 0.132 | B66: 0 | C66: 66
A67: 0.134 | B67: 0 | C67: 67
A68: 0.136 | B68: 0 | C68: 68
A69: 0.138 | B69: 0 | C69: 69
A70: 0.14 | B70: 0 | C70: 70
A71: 0.142 | B71: 0 | C71: 71
A72: 0.144 | B72: 0 | C72: 72
A73: 0.146 | B73: 0 | C73: 73
A74: 0.148 | B74: 0 | C74: 74
A75: 0.15 | B75: 0 | C75: 75
A76: 0.152 | B76: 0 | C76: 76
A77: 0.154 | B77: 0 | C77: 77
A78: 0.156 | B78: 0 | C78: 78
A79: 0.158 | B79: 0 | C79: 79
A80: 0.16 | B80: 0 | C80: 80
A81: 0.162 | B81: 0 | C81: 81
A82: 0.164 | B82: 0 | C82: 82
A83: 0.166 | B83: 0 | C83: 83
A84: 0.168 | B84: 0 | C84: 84
A85: 0.17 | B85: 0 | C85: 85
A86: 0.172 | B86: 0 | C86: 86
A87: 0.174 | B87: 0 | C87: 87
A88: 0.176 | B88: 0 | C88: 88
A89: 0.178 | B89: 0 | C89: 89
A90: 0.18 | B90: 0 | C90: 90
A91: 0.182 | B91: 0 | C91: 91
A92: 0.184 | B92: 0 | C92: 92
A93: 0.186 | B93: 0 | C93: 93
A94: 0.188 | B94: 0 | C94: 94
A95: 0.19 | B95: 0 | C95: 95
A96: 0.192 | B96: 0 | C96: 96
A97: 0.194 | B97: 0 | C97: 97
A98: 0.196 | B98: 0 | C98: 98
A99: 0.198 | B99: 0 | C99: 99
A100: 0.2 | B100: 0 | C100: 100
A101: 0.202 | B101: 0 | C101: 101
A102: 0.204 | B102: 0 | C102: 102
A103: 0.206 | B103: 0 | C103: 103
A104: 0.208 | B104: 0 | C104: 104
A105: 0.21 | B105: 0 | C105: 105
A106: 0.212 | B106: 0 | C106: 106
A107: 0.214 | B107: 0 | C107: 107
A108: 0.216 | B108: 0 | C108: 108
A109: 0.218 | B109: 0 | C109: 109
A110: 0.22 | B110: 0 | C110: 110
A111: 0.222 | B111: 0 | C111: 111
A112: 0.224 | B112: 0 | C112: 112
A113: 0.226 | B113: 0 | C113: 113
A114: 0.228 | B114: 0 | C114: 114
A115: 0.23 | B115: 0 | C115: 115
A116: 0.232 | B116: 0 | C116: 116
A117: 0.234 | B117: 0 | C117: 117
A118: 0.236 | B118: 0 | C118: 118
A119: 0.238 | B119: 0 | C119: 119
A120: 0.24 | B120: 0 | C120: 120
A121: 0.242 | B121: 0 | C121: 121
A122: 0.244 | B122: 0 | C122: 122
A123: 0.246 | B123: 0 | C123: 123
A124: 0.248 | B124: 0 | C124: 124
A125: 0.25 | B125: 0 | C125: 125
A126: 0.252 | B126: 0 | C126: 126
A127: 0.254 | B127: 0 | C127: 127
A128: 0.256 | B128: 0 | C128: 128
A129: 0.258 | B129: 0 | C129: 129
A130: =C130/500 -> 0.26 | B130: 0 | C130: 130
A131: 0.262 | B131: 0 | C131: 131
A132: 0.264 | B132: 0 | C132: 132
A133: 0.266 | B133: 0 | C133: 133
A134: 0.268 | B134: 0 | C134: 134
A135: 0.27 | B135: 0 | C135: 135
A136: 0.272 | B136: 0 | C136: 136
A137: 0.274 | B137: 0 | C137: 137
A138: 0.276 | B138: 0 | C138: 138
A139: 0.278 | B139: 0 | C139: 139
A140: 0.28 | B140: 0 | C140: 140
A141: 0.282 | B141: 0 | C141: 141
A142: 0.284 | B142: 0 | C142: 142
A143: 0.286 | B143: 0 | C143: 143
A144: 0.288 | B144: 0 | C144: 144
A145: 0.29 | B145: 0 | C145: 145
A146: 0.292 | B146: 0 | C146: 146
A147: 0.294 | B147: 0 | C147: 147
A148: 0.296 | B148: 0 | C148: 148
A149: 0.298 | B149: 0 | C149: 149
A150: 0.3 | B150: 0 | C150: 150
A151: 0.302 | B151: 0 | C151: 151
A152: 0.304 | B152: 0 | C152: 152
A153: 0.306 | B153: 0 | C153: 153
A154: 0.308 | B154: 0 | C154: 154
A155: 0.31 | B155: 0 | C155: 155
A156: 0.312 | B156: 0 | C156: 156
A157: 0.314 | B157: 0 | C157: 157
A158: 0.316 | B158: 0 | C158: 158
A159: 0.318 | B159: 0 | C159: 159
A160: 0.32 | B160: 0 | C160: 160
A161: 0.322 | B161: 0 | C161: 161
A162: 0.324 | B162: 0 | C162: 162
A163: 0.326 | B163: 0 | C163: 163
A164: 0.328 | B164: 0 | C164: 164
A165: 0.33 | B165: 0 | C165: 165
A166: 0.332 | B166: 0 | C166: 166
A167: 0.334 | B167: 0 | C167: 167
A168: 0.336 | B168: 0 | C168: 168
A169: 0.338 | B169: 0 | C169: 169
A170: 0.34 | B170: 0 | C170: 170
A171: 0.342 | B171: 0 | C171: 171
A172: 0.344 | B172: 0 | C172: 172
A173: 0.346 | B173: 0 | C173: 173
A174: 0.348 | B174: 0 | C174: 174
A175: 0.35 | B175: 0 | C175: 175
A176: 0.352 | B176: 0 | C176: 176
A177: 0.354 | B177: 0 | C177: 177
A178: 0.356 | B178: 0 | C178: 178
A179: 0.358 | B179: 0 | C179: 179
A180: 0.36 | B180: 0 | C180: 180
A181: 0.362 | B181: 0 | C181: 181
A182: 0.364 | B182: 0 | C182: 182
A183: 0.366 | B183: 0 | C183: 183
A184: 0.368 | B184: 0 | C184: 184
A185: 0.37 | B185: 0 | C185: 185
A186: 0.372 | B186: 0 | C186: 186
A187: 0.374 | B187: 0 | C187: 187
A188: 0.376 | B188: 0 | C188: 188
A189: 0.378 | B189: 0 | C189: 189
A190: 0.38 | B190: 0 | C190: 190
A191: 0.382 | B191: 0 | C191: 191
A192: 0.384 | B192: 0 | C192: 192
A193: 0.386 | B193: 0 | C193: 193
A194: =C194/500 -> 0.388 | B194: 0 | C194: 194
A195: 0.39 | B195: 0 | C195: 195
A196: 0.392 | B196: 0 | C196: 196
A197: 0.394 | B197: 0 | C197: 197
A198: 0.396 | B198: 0 | C198: 198
A199: 0.398 | B199: 0 | C199: 199
A200: 0.4 | B200: 0 | C200: 200
... 300 more rows

Sheet resultados
A1: DD1 | B1: DD2 | C1: Ruina | D1: Net (SIN) | E1: Net (filtrada) | F1: DD (SIN) | G1: DD (filtrado) | H1: POR (SIN) | I1: POR (filtrada)
A2: =datos!S10 -> 3000 | B2: =datos!S11 -> 6000 | C2: =datos!S7 -> 90000 | D2: =ganancia!J24 -> 24015 | E2: =ganancia2!J24 -> 14886.42 | F2: =drawdown!J24 -> 12074.9 | G2: =drawdown2!J24 -> 15119.48 | H2: =ruina!K25 -> 0.244 | I2: =ruina2!K25 -> 0.128
M7: comentarios
D8: DD1 | E8: DD2 | F8: Ruina | G8: Net (SIN) | H8: Net (filtr) | I8: DD (SIN) | J8: DD (filtr) | K8: PoR (SIN) | L8: PoR (filtr)
D9: 2000 | E9: 4000 | F9: 90000 | G9: 25692.85 | H9: 14466.045 | I9: 12438.7 | J9: 16688.5 | K9: 0.238 | L9: 0.122 | M9: Intervenir demasiado cerca reduce a la mitad la ganancia
D10: 10000 | E10: 20000 | F10: 70000 | G10: 27614.32 | H10: 24403.54 | I10: 13357.5 | J10: 13737.6 | K10: 0.016 | L10: 0
D11: 20000 | E11: 25000 | F11: 70000 | G11: 27682.3 | H11: 27245.7 | I11: 13587.5 | J11: 13587.5 | K11: 0.01 | L11: 0.004 | M11: No cambian Gan ni DD. Baja la Prob de Ruina

Sheet graficos
B23: La reducción de riesgo funciona y detiene el DD | J23: En este caso era mejor no haber actuado sobre el sistema

Sheet Instrucciones
B3: Esta hoja hace una simulación de Montecarlo a partir de las operaciones de la columna A, hoja "datos".
B4: Implementa una estrategia de reducir el tamaño de la operación al 50% a partir de un determinado drawdown DD1
B5: Si el drawdown aumenta y llega al nivel DD2 se detiene la operativa durante 3 operaciones. Luego se reanuda.
B6: La simulación es para un año de trading.
B7: Hay que rellenar en la pestaña "datos" lo que tenga fondo azul.
B8: El siguiente vídeo en YouTube explica su funcionamiento:
B10: https://youtu.be/JRANqeNl1fo
